Workbook

Sheet 設定
A1: 誕生日 | B1: 1974-01-12 | E1: 4 | F1: =SUMIFS(task!$G:$G,task!$D:$D,E1,task!$B:$B,task!$B$1)/60 -> 0 | G1: 1
E2: 5 | F2: =SUMIFS(task!$G:$G,task!$D:$D,E2,task!$B:$B,task!$B$1)/60 -> 0 | G2: 1
E3: 6 | F3: =SUMIFS(task!$G:$G,task!$D:$D,E3,task!$B:$B,task!$B$1)/60 -> 1.25 | G3: 1
E4: 7 | F4: =SUMIFS(task!$G:$G,task!$D:$D,E4,task!$B:$B,task!$B$1)/60 -> 0.25 | G4: 1
E5: 8 | F5: =SUMIFS(task!$G:$G,task!$D:$D,E5,task!$B:$B,task!$B$1)/60 -> 0 | G5: 1
E6: 9 | F6: =SUMIFS(task!$G:$G,task!$D:$D,E6,task!$B:$B,task!$B$1)/60 -> 0 | G6: 1
E7: 10 | F7: =SUMIFS(task!$G:$G,task!$D:$D,E7,task!$B:$B,task!$B$1)/60 -> 0 | G7: 1
E8: 11 | F8: =SUMIFS(task!$G:$G,task!$D:$D,E8,task!$B:$B,task!$B$1)/60 -> 0 | G8: 1
E9: 12 | F9: =SUMIFS(task!$G:$G,task!$D:$D,E9,task!$B:$B,task!$B$1)/60 -> 1 | G9: 1
E10: 13 | F10: =SUMIFS(task!$G:$G,task!$D:$D,E10,task!$B:$B,task!$B$1)/60 -> 3 | G10: 1
E11: 14 | F11: =SUMIFS(task!$G:$G,task!$D:$D,E11,task!$B:$B,task!$B$1)/60 -> 0 | G11: 1
E12: 15 | F12: =SUMIFS(task!$G:$G,task!$D:$D,E12,task!$B:$B,task!$B$1)/60 -> 2 | G12: 1
E13: 16 | F13: =SUMIFS(task!$G:$G,task!$D:$D,E13,task!$B:$B,task!$B$1)/60 -> 1 | G13: 1
E14: 17 | F14: =SUMIFS(task!$G:$G,task!$D:$D,E14,task!$B:$B,task!$B$1)/60 -> 1 | G14: 1
E15: 18 | F15: =SUMIFS(task!$G:$G,task!$D:$D,E15,task!$B:$B,task!$B$1)/60 -> 0 | G15: 1
E16: 19 | F16: =SUMIFS(task!$G:$G,task!$D:$D,E16,task!$B:$B,task!$B$1)/60 -> 2.5 | G16: 1
E17: 20 | F17: =SUMIFS(task!$G:$G,task!$D:$D,E17,task!$B:$B,task!$B$1)/60 -> 0 | G17: 1
E18: 21 | F18: =SUMIFS(task!$G:$G,task!$D:$D,E18,task!$B:$B,task!$B$1)/60 -> 0 | G18: 1
E19: 22 | F19: =SUMIFS(task!$G:$G,task!$D:$D,E19,task!$B:$B,task!$B$1)/60 -> 0 | G19: 1
E20: 23 | F20: =SUMIFS(task!$G:$G,task!$D:$D,E20,task!$B:$B,task!$B$1)/60 -> 0 | G20: 1

Sheet task
B1: 2017-06-24 | C1: 生まれてから | D1: =TODAY()-設定!B1+1 -> 15870 | E1: =$B$1+1 -> 2017-06-25 | F1: =SUMIF($B:$B,$E1,$G:$G)/60 -> 3.5 | M1: Ctrl＋： 時刻入力 | N1: Ctrl＋i 黄色にする
C2: 45 | D2: =DATE(YEAR(設定!$B$1)+C2,MONTH(設定!$B$1),DAY(設定!$B$1))-TODAY() -> 567 | E2: =$B$1+2 -> 2017-06-26 | F2: =SUMIF($B:$B,$E2,$G:$G)/60 -> 4.166666667 | M2: Ctrl＋方向キー データの端まで移動
A3: 現在時刻 | B3: =NOW() -> 2017-06-24T14:54:08.490 | C3: 60 | D3: =DATE(YEAR(設定!$B$1)+C3,MONTH(設定!$B$1),DAY(設定!$B$1))-TODAY() -> 6046 | E3: =$B$1+3 -> 2017-06-27 | F3: =SUMIF($B:$B,$E3,$G:$G)/60 -> 0 | M3: Ctrl＋S 保存 | V3: 2013-06-23
A4: 終了予測 | B4: =SUMIF(A:A,2,G:G)/60*TIMEVALUE("1:00")+B3 -> 2017-06-25T00:24:08.490 | C4: 80 | D4: =DATE(YEAR(設定!$B$1)+C4,MONTH(設定!$B$1),DAY(設定!$B$1))-TODAY() -> 13351 | E4: =$B$1+4 -> 2017-06-28 | F4: =SUMIF($B:$B,$E4,$G:$G)/60 -> 0 | M4: Ctrl＋J 新規タスク追加
E5: =$B$1+5 -> 2017-06-29 | F5: =SUMIF($B:$B,$E5,$G:$G)/60 -> 0.25 | M5: Ctrl＋K タスク削除
E6: =$B$1+6 -> 2017-06-30 | F6: =SUMIF($B:$B,$E6,$G:$G)/60 -> 0 | M6: Ctrl＋E 開始時間入力
E7: =$B$1+7 -> 2017-07-01 | F7: =SUMIF($B:$B,$E7,$G:$G)/60 -> 0.3333333333 | M7: Ctrl＋Q 並べ替え | W7: 2007-07-09
M8: Ctrl＋B コピー
A9: 記号 | B9: 月日 | C9: r | D9: 時間 | E9: チェック | F9: タスク | G9: 見積（分） | H9: 実績（分） | I9: 差異 | J9: 開始 | K9: 終了 | M9: Ctrl＋D 下方向にコピー
A10: =IF(AND(B10=$B$1,K10=""),"２",IF(AND(B10=$B$1,K10<>""),"１",IF(B10>$B$1,"３","4"))) -> １ | B10: 2017-06-24 | C10: d | D10: 6 | E10: done! | F10: 朝食、SNSチェック | G10: 60 | H10: =IF(OR(J10="",K10=""),"",(K10-J10)/TIMEVALUE("1:00")*60) -> 90 | I10: =IF(H10="","",G10-H10) -> -30 | J10: 09:00:00 | K10: 10:30:00
A11: =IF(AND(B11=$B$1,K11=""),"２",IF(AND(B11=$B$1,K11<>""),"１",IF(B11>$B$1,"３","4"))) -> １ | B11: 2017-06-24 | C11: d | D11: 7 | E11: done! | F11: タスク作成 | G11: 15 | H11: =IF(OR(J11="",K11=""),"",(K11-J11)/TIMEVALUE("1:00")*60) -> 5 | I11: =IF(H11="","",G11-H11) -> 10 | J11: 10:30:00 | K11: 10:35:00
A12: =IF(AND(B12=$B$1,K12=""),"２",IF(AND(B12=$B$1,K12<>""),"１",IF(B12>$B$1,"３","4"))) -> １ | B12: 2017-06-24 | C12: d | D12: 12 | E12: done! | F12: ランチ、SNSチェック | G12: 60 | H12: =IF(OR(J12="",K12=""),"",(K12-J12)/TIMEVALUE("1:00")*60) -> 60 | I12: =IF(H12="","",G12-H12) -> 5.684341886e-14 | J12: 13:20:00 | K12: 14:20:00
A13: =IF(AND(B13=$B$1,K13=""),"２",IF(AND(B13=$B$1,K13<>""),"１",IF(B13>$B$1,"３","4"))) -> １ | B13: 2017-06-24 | C13: d | D13: 6 | E13: done! | F13: 経理処理、交通費記録 | G13: 15 | H13: =IF(OR(J13="",K13=""),"",(K13-J13)/TIMEVALUE("1:00")*60) -> 5 | I13: =IF(H13="","",G13-H13) -> 10 | J13: 14:45:00 | K13: 14:50:00
A14: =IF(AND(B14=$B$1,K14=""),"２",IF(AND(B14=$B$1,K14<>""),"１",IF(B14>$B$1,"３","4"))) -> ２ | B14: 2017-06-24 | D14: 13 | F14: 経営革新支援機関の検討 | G14: 60 | H14: =IF(OR(J14="",K14=""),"",(K14-J14)/TIMEVALUE("1:00")*60) ->  | I14: =IF(H14="","",G14-H14) -> 
A15: =IF(AND(B15=$B$1,K15=""),"２",IF(AND(B15=$B$1,K15<>""),"１",IF(B15>$B$1,"３","4"))) -> ２ | B15: 2017-06-24 | D15: 13 | F15: 古江 原価計算（給与実績の確認） | G15: 120 | H15: =IF(OR(J15="",K15=""),"",(K15-J15)/TIMEVALUE("1:00")*60) ->  | I15: =IF(H15="","",G15-H15) -> 
A16: =IF(AND(B16=$B$1,K16=""),"２",IF(AND(B16=$B$1,K16<>""),"１",IF(B16>$B$1,"３","4"))) -> ２ | B16: 2017-06-24 | C16: d | D16: 15 | F16: ワニ氏セミナー視聴 | G16: 120 | H16: =IF(OR(J16="",K16=""),"",(K16-J16)/TIMEVALUE("1:00")*60) ->  | I16: =IF(H16="","",G16-H16) -> 
A17: =IF(AND(B17=$B$1,K17=""),"２",IF(AND(B17=$B$1,K17<>""),"１",IF(B17>$B$1,"３","4"))) -> ２ | B17: 2017-06-24 | D17: 16 | F17: dropboxファイル整理 | G17: 60 | H17: =IF(OR(J17="",K17=""),"",(K17-J17)/TIMEVALUE("1:00")*60) ->  | I17: =IF(H17="","",G17-H17) -> 
A18: =IF(AND(B18=$B$1,K18=""),"２",IF(AND(B18=$B$1,K18<>""),"１",IF(B18>$B$1,"３","4"))) -> ２ | B18: 2017-06-24 | D18: 17 | F18: 小規模企業共済、確定拠出の検討 | G18: 60 | H18: =IF(OR(J18="",K18=""),"",(K18-J18)/TIMEVALUE("1:00")*60) ->  | I18: =IF(H18="","",G18-H18) -> 
A19: =IF(AND(B19=$B$1,K19=""),"２",IF(AND(B19=$B$1,K19<>""),"１",IF(B19>$B$1,"３","4"))) -> ２ | B19: 2017-06-24 | D19: 19 | F19: ウィルスソフトインストール | G19: 60 | H19: =IF(OR(J19="",K19=""),"",(K19-J19)/TIMEVALUE("1:00")*60) ->  | I19: =IF(H19="","",G19-H19) -> 
A20: =IF(AND(B20=$B$1,K20=""),"２",IF(AND(B20=$B$1,K20<>""),"１",IF(B20>$B$1,"３","4"))) -> ２ | B20: 2017-06-24 | C20: d | D20: 19 | F20: 読書 | G20: 30 | H20: =IF(OR(J20="",K20=""),"",(K20-J20)/TIMEVALUE("1:00")*60) ->  | I20: =IF(H20="","",G20-H20) -> 
A21: =IF(AND(B21=$B$1,K21=""),"２",IF(AND(B21=$B$1,K21<>""),"１",IF(B21>$B$1,"３","4"))) -> ２ | B21: 2017-06-24 | C21: d | D21: 19 | F21: 夕食、SNSチェック | G21: 60 | H21: =IF(OR(J21="",K21=""),"",(K21-J21)/TIMEVALUE("1:00")*60) ->  | I21: =IF(H21="","",G21-H21) -> 
A22: =IF(AND(B22=$B$1,K22=""),"２",IF(AND(B22=$B$1,K22<>""),"１",IF(B22>$B$1,"３","4"))) -> ３ | B22: 2017-06-25 | D22: 23 | F22: 給与計算授業視聴（退職金） | G22: 60 | H22: =IF(OR(J22="",K22=""),"",(K22-J22)/TIMEVALUE("1:00")*60) ->  | I22: =IF(H22="","",G22-H22) -> 
A23: =IF(AND(B23=$B$1,K23=""),"２",IF(AND(B23=$B$1,K23<>""),"１",IF(B23>$B$1,"３","4"))) -> ３ | B23: 2017-06-25 | C23: d | D23: 6 | F23: 経理処理、交通費記録 | G23: 15 | H23: =IF(OR(J23="",K23=""),"",(K23-J23)/TIMEVALUE("1:00")*60) ->  | I23: =IF(H23="","",G23-H23) -> 
A24: =IF(AND(B24=$B$1,K24=""),"２",IF(AND(B24=$B$1,K24<>""),"１",IF(B24>$B$1,"３","4"))) -> ３ | B24: 2017-06-25 | C24: d | D24: 6 | F24: 朝食、SNSチェック | G24: 60 | H24: =IF(OR(J24="",K24=""),"",(K24-J24)/TIMEVALUE("1:00")*60) ->  | I24: =IF(H24="","",G24-H24) -> 
A25: =IF(AND(B25=$B$1,K25=""),"２",IF(AND(B25=$B$1,K25<>""),"１",IF(B25>$B$1,"３","4"))) -> ３ | B25: 2017-06-25 | C25: d | D25: 7 | F25: タスク作成 | G25: 15 | H25: =IF(OR(J25="",K25=""),"",(K25-J25)/TIMEVALUE("1:00")*60) ->  | I25: =IF(H25="","",G25-H25) -> 
A26: =IF(AND(B26=$B$1,K26=""),"２",IF(AND(B26=$B$1,K26<>""),"１",IF(B26>$B$1,"３","4"))) -> ３ | B26: 2017-06-25 | C26: d | D26: 12 | F26: ランチ、SNSチェック | G26: 60 | H26: =IF(OR(J26="",K26=""),"",(K26-J26)/TIMEVALUE("1:00")*60) ->  | I26: =IF(H26="","",G26-H26) -> 
A27: =IF(AND(B27=$B$1,K27=""),"２",IF(AND(B27=$B$1,K27<>""),"１",IF(B27>$B$1,"３","4"))) -> ３ | B27: 2017-06-26 | C27: m | D27: 9 | F27: 6/26家賃振り込み（STコンサル） | G27: 10 | H27: =IF(OR(J27="",K27=""),"",(K27-J27)/TIMEVALUE("1:00")*60) ->  | I27: =IF(H27="","",G27-H27) -> 
A28: =IF(AND(B28=$B$1,K28=""),"２",IF(AND(B28=$B$1,K28<>""),"１",IF(B28>$B$1,"３","4"))) -> ３ | B28: 2017-06-26 | C28: h | D28: 9 | F28: gmail、yahooメールチェック（朝） | G28: 20 | H28: =IF(OR(J28="",K28=""),"",(K28-J28)/TIMEVALUE("1:00")*60) ->  | I28: =IF(H28="","",G28-H28) -> 
A29: =IF(AND(B29=$B$1,K29=""),"２",IF(AND(B29=$B$1,K29<>""),"１",IF(B29>$B$1,"３","4"))) -> ３ | B29: 2017-06-26 | C29: h | D29: 10 | F29: STCメールチェック対応午前 | G29: 20 | H29: =IF(OR(J29="",K29=""),"",(K29-J29)/TIMEVALUE("1:00")*60) ->  | I29: =IF(H29="","",G29-H29) -> 
A30: =IF(AND(B30=$B$1,K30=""),"２",IF(AND(B30=$B$1,K30<>""),"１",IF(B30>$B$1,"３","4"))) -> ３ | B30: 2017-06-26 | C30: h | D30: 11 | F30: gmail、yahooメールチェック（午前） | G30: 10 | H30: =IF(OR(J30="",K30=""),"",(K30-J30)/TIMEVALUE("1:00")*60) ->  | I30: =IF(H30="","",G30-H30) -> 
A31: =IF(AND(B31=$B$1,K31=""),"２",IF(AND(B31=$B$1,K31<>""),"１",IF(B31>$B$1,"３","4"))) -> ３ | B31: 2017-06-26 | C31: h | D31: 14 | F31: gmail、yahooメールチェック（午後） | G31: 10 | H31: =IF(OR(J31="",K31=""),"",(K31-J31)/TIMEVALUE("1:00")*60) ->  | I31: =IF(H31="","",G31-H31) -> 
A32: =IF(AND(B32=$B$1,K32=""),"２",IF(AND(B32=$B$1,K32<>""),"１",IF(B32>$B$1,"３","4"))) -> ３ | B32: 2017-06-26 | C32: h | D32: 14 | F32: STCメールチェック対応午後 | G32: 20 | H32: =IF(OR(J32="",K32=""),"",(K32-J32)/TIMEVALUE("1:00")*60) ->  | I32: =IF(H32="","",G32-H32) -> 
A33: =IF(AND(B33=$B$1,K33=""),"２",IF(AND(B33=$B$1,K33<>""),"１",IF(B33>$B$1,"３","4"))) -> ３ | B33: 2017-06-26 | C33: h | D33: 17 | F33: gmail、yahooメールチェック（夕方） | G33: 10 | H33: =IF(OR(J33="",K33=""),"",(K33-J33)/TIMEVALUE("1:00")*60) ->  | I33: =IF(H33="","",G33-H33) -> 
A34: =IF(AND(B34=$B$1,K34=""),"２",IF(AND(B34=$B$1,K34<>""),"１",IF(B34>$B$1,"３","4"))) -> ３ | B34: 2017-06-26 | C34: h | D34: 17 | F34: STCメールチェック対応ラスト | G34: 20 | H34: =IF(OR(J34="",K34=""),"",(K34-J34)/TIMEVALUE("1:00")*60) ->  | I34: =IF(H34="","",G34-H34) -> 
A35: =IF(AND(B35=$B$1,K35=""),"２",IF(AND(B35=$B$1,K35<>""),"１",IF(B35>$B$1,"３","4"))) -> ３ | B35: 2017-06-26 | C35: h | D35: 20 | F35: gmail、yahooメールチェック（夜） | G35: 10 | H35: =IF(OR(J35="",K35=""),"",(K35-J35)/TIMEVALUE("1:00")*60) ->  | I35: =IF(H35="","",G35-H35) -> 
A36: =IF(AND(B36=$B$1,K36=""),"２",IF(AND(B36=$B$1,K36<>""),"１",IF(B36>$B$1,"３","4"))) -> ３ | B36: 2017-06-26 | C36: h | D36: 21 | F36: ブログ更新 | G36: 120 | H36: =IF(OR(J36="",K36=""),"",(K36-J36)/TIMEVALUE("1:00")*60) ->  | I36: =IF(H36="","",G36-H36) -> 
A37: =IF(AND(B37=$B$1,K37=""),"２",IF(AND(B37=$B$1,K37<>""),"１",IF(B37>$B$1,"３","4"))) -> ３ | B37: 2017-06-29 | C37: m | D37: 9 | F37: STコンサルから給与振込 | G37: 15 | H37: =IF(OR(J37="",K37=""),"",(K37-J37)/TIMEVALUE("1:00")*60) ->  | I37: =IF(H37="","",G37-H37) -> 
A38: =IF(AND(B38=$B$1,K38=""),"２",IF(AND(B38=$B$1,K38<>""),"１",IF(B38>$B$1,"３","4"))) -> ３ | B38: 2017-07-01 | C38: m | D38: 13 | F38: STC請求書作成、送付 | G38: 20 | H38: =IF(OR(J38="",K38=""),"",(K38-J38)/TIMEVALUE("1:00")*60) ->  | I38: =IF(H38="","",G38-H38) -> 
A39: =IF(AND(B39=$B$1,K39=""),"２",IF(AND(B39=$B$1,K39<>""),"１",IF(B39>$B$1,"３","4"))) -> ３ | B39: 2017-07-14 | C39: m | D39: 9 | F39: 子会社請求書作成、送付 | G39: 40 | H39: =IF(OR(J39="",K39=""),"",(K39-J39)/TIMEVALUE("1:00")*60) ->  | I39: =IF(H39="","",G39-H39) -> 
A40: =IF(AND(B40=$B$1,K40=""),"２",IF(AND(B40=$B$1,K40<>""),"１",IF(B40>$B$1,"３","4"))) -> 4 | B40: 2017-04-05 | C40: d | D40: 6 | E40: done! | F40: 朝食、SNSチェック | G40: 60 | H40: =IF(OR(J40="",K40=""),"",(K40-J40)/TIMEVALUE("1:00")*60) -> 30 | I40: =IF(H40="","",G40-H40) -> 30 | J40: 06:15:00 | K40: 06:45:00
A41: =IF(AND(B41=$B$1,K41=""),"２",IF(AND(B41=$B$1,K41<>""),"１",IF(B41>$B$1,"３","4"))) -> 4 | B41: 2017-04-05 | D41: 6 | E41: done! | F41: STC移動 | G41: 90 | H41: =IF(OR(J41="",K41=""),"",(K41-J41)/TIMEVALUE("1:00")*60) -> 90 | I41: =IF(H41="","",G41-H41) -> 0 | J41: 06:45:00 | K41: 08:15:00
A42: =IF(AND(B42=$B$1,K42=""),"２",IF(AND(B42=$B$1,K42<>""),"１",IF(B42>$B$1,"３","4"))) -> 4 | B42: 2017-04-05 | D42: 6 | E42: done! | F42: 高野さん打ち合わせ | G42: 30 | H42: =IF(OR(J42="",K42=""),"",(K42-J42)/TIMEVALUE("1:00")*60) -> 21 | I42: =IF(H42="","",G42-H42) -> 9 | J42: 08:15:00 | K42: 08:36:00
A43: =IF(AND(B43=$B$1,K43=""),"２",IF(AND(B43=$B$1,K43<>""),"１",IF(B43>$B$1,"３","4"))) -> 4 | B43: 2017-04-05 | C43: d | D43: 8 | E43: done! | F43: タスク作成、メール整理（gmail、yahoo） | G43: 30 | H43: =IF(OR(J43="",K43=""),"",(K43-J43)/TIMEVALUE("1:00")*60) -> 19 | I43: =IF(H43="","",G43-H43) -> 11 | J43: 08:36:00 | K43: 08:55:00
A44: =IF(AND(B44=$B$1,K44=""),"２",IF(AND(B44=$B$1,K44<>""),"１",IF(B44>$B$1,"３","4"))) -> 4 | B44: 2017-04-05 | D44: 9 | E44: done! | F44: 見積実効税率の計算、承認 | G44: 60 | H44: =IF(OR(J44="",K44=""),"",(K44-J44)/TIMEVALUE("1:00")*60) -> 30 | I44: =IF(H44="","",G44-H44) -> 30 | J44: 08:55:00 | K44: 09:25:00
A45: =IF(AND(B45=$B$1,K45=""),"２",IF(AND(B45=$B$1,K45<>""),"１",IF(B45>$B$1,"３","4"))) -> 4 | B45: 2017-04-05 | C45: h | D45: 11 | E45: done! | F45: gmail、yahooメールチェック（午前） | G45: 10 | H45: =IF(OR(J45="",K45=""),"",(K45-J45)/TIMEVALUE("1:00")*60) -> 5 | I45: =IF(H45="","",G45-H45) -> 5 | J45: 09:25:00 | K45: 09:30:00
A46: =IF(AND(B46=$B$1,K46=""),"２",IF(AND(B46=$B$1,K46<>""),"１",IF(B46>$B$1,"３","4"))) -> 4 | B46: 2017-04-05 | D46: 10 | E46: done! | F46: 回覧物確認（午前） | G46: 20 | H46: =IF(OR(J46="",K46=""),"",(K46-J46)/TIMEVALUE("1:00")*60) -> 60 | I46: =IF(H46="","",G46-H46) -> -40 | J46: 09:30:00 | K46: 10:30:00
A47: =IF(AND(B47=$B$1,K47=""),"２",IF(AND(B47=$B$1,K47<>""),"１",IF(B47>$B$1,"３","4"))) -> 4 | B47: 2017-04-05 | D47: 10 | E47: done! | F47: ルフト連結RP作成(午前) | G47: 60 | H47: =IF(OR(J47="",K47=""),"",(K47-J47)/TIMEVALUE("1:00")*60) -> 60 | I47: =IF(H47="","",G47-H47) -> -2.842170943e-14 | J47: 11:00:00 | K47: 12:00:00
A48: =IF(AND(B48=$B$1,K48=""),"２",IF(AND(B48=$B$1,K48<>""),"１",IF(B48>$B$1,"３","4"))) -> 4 | B48: 2017-04-05 | C48: d | D48: 12 | E48: done! | F48: ランチ、SNSチェック | G48: 60 | H48: =IF(OR(J48="",K48=""),"",(K48-J48)/TIMEVALUE("1:00")*60) -> 45 | I48: =IF(H48="","",G48-H48) -> 15 | J48: 12:00:00 | K48: 12:45:00
A49: =IF(AND(B49=$B$1,K49=""),"２",IF(AND(B49=$B$1,K49<>""),"１",IF(B49>$B$1,"３","4"))) -> 4 | B49: 2017-04-05 | D49: 13 | E49: done! | F49: 日本ルフトへ移動 | G49: 30 | H49: =IF(OR(J49="",K49=""),"",(K49-J49)/TIMEVALUE("1:00")*60) -> 30 | I49: =IF(H49="","",G49-H49) -> -5.329070518e-14 | J49: 13:00:00 | K49: 13:30:00
A50: =IF(AND(B50=$B$1,K50=""),"２",IF(AND(B50=$B$1,K50<>""),"１",IF(B50>$B$1,"３","4"))) -> 4 | B50: 2017-04-05 | D50: 13 | E50: done! | F50: 日本ルフト打ち合わせ | G50: 120 | H50: =IF(OR(J50="",K50=""),"",(K50-J50)/TIMEVALUE("1:00")*60) -> 210 | I50: =IF(H50="","",G50-H50) -> -90 | J50: 13:30:00 | K50: 17:00:00
A51: =IF(AND(B51=$B$1,K51=""),"２",IF(AND(B51=$B$1,K51<>""),"１",IF(B51>$B$1,"３","4"))) -> 4 | B51: 2017-04-05 | D51: 16 | E51: done! | F51: 日本ルフトから移動 | G51: 30 | H51: =IF(OR(J51="",K51=""),"",(K51-J51)/TIMEVALUE("1:00")*60) -> 30 | I51: =IF(H51="","",G51-H51) -> 1.065814104e-13 | J51: 17:00:00 | K51: 17:30:00
A52: =IF(AND(B52=$B$1,K52=""),"２",IF(AND(B52=$B$1,K52<>""),"１",IF(B52>$B$1,"３","4"))) -> 4 | B52: 2017-04-05 | C52: h | D52: 14 | E52: done! | F52: gmail、yahooメールチェック（午後） | G52: 10 | H52: =IF(OR(J52="",K52=""),"",(K52-J52)/TIMEVALUE("1:00")*60) -> 10 | I52: =IF(H52="","",G52-H52) -> -1.243449788e-13 | J52: 17:30:00 | K52: 17:40:00
A53: =IF(AND(B53=$B$1,K53=""),"２",IF(AND(B53=$B$1,K53<>""),"１",IF(B53>$B$1,"３","4"))) -> 4 | B53: 2017-04-05 | D53: 17 | E53: done! | F53: STC PC整理 | G53: 30 | H53: =IF(OR(J53="",K53=""),"",(K53-J53)/TIMEVALUE("1:00")*60) -> 10 | I53: =IF(H53="","",G53-H53) -> 20 | J53: 18:30:00 | K53: 18:40:00
A54: =IF(AND(B54=$B$1,K54=""),"２",IF(AND(B54=$B$1,K54<>""),"１",IF(B54>$B$1,"３","4"))) -> 4 | B54: 2017-04-05 | D54: 11 | E54: done! | F54: STC消費税チェック | G54: 90 | H54: =IF(OR(J54="",K54=""),"",(K54-J54)/TIMEVALUE("1:00")*60) -> 13 | I54: =IF(H54="","",G54-H54) -> 77 | J54: 18:40:00 | K54: 18:53:00
A55: =IF(AND(B55=$B$1,K55=""),"２",IF(AND(B55=$B$1,K55<>""),"１",IF(B55>$B$1,"３","4"))) -> 4 | B55: 2017-04-05 | C55: h | D55: 17 | E55: done! | F55: gmail、yahooメールチェック（夕方） | G55: 10 | H55: =IF(OR(J55="",K55=""),"",(K55-J55)/TIMEVALUE("1:00")*60) -> 7 | I55: =IF(H55="","",G55-H55) -> 3 | J55: 18:53:00 | K55: 19:00:00
A56: =IF(AND(B56=$B$1,K56=""),"２",IF(AND(B56=$B$1,K56<>""),"１",IF(B56>$B$1,"３","4"))) -> 4 | B56: 2017-04-05 | D56: 19 | E56: done! | F56: STCから帰宅 | G56: 90 | H56: =IF(OR(J56="",K56=""),"",(K56-J56)/TIMEVALUE("1:00")*60) -> 120 | I56: =IF(H56="","",G56-H56) -> -30 | J56: 19:30:00 | K56: 21:30:00
A57: =IF(AND(B57=$B$1,K57=""),"２",IF(AND(B57=$B$1,K57<>""),"１",IF(B57>$B$1,"３","4"))) -> 4 | B57: 2017-04-05 | C57: h | D57: 19 | E57: done! | F57: gmail、yahooメールチェック（夜） | G57: 10 | H57: =IF(OR(J57="",K57=""),"",(K57-J57)/TIMEVALUE("1:00")*60) -> 15 | I57: =IF(H57="","",G57-H57) -> -5 | J57: 21:30:00 | K57: 21:45:00
A58: =IF(AND(B58=$B$1,K58=""),"２",IF(AND(B58=$B$1,K58<>""),"１",IF(B58>$B$1,"３","4"))) -> 4 | B58: 2017-04-05 | C58: d | D58: 19 | E58: done! | F58: 夕食、SNSチェック | G58: 60 | H58: =IF(OR(J58="",K58=""),"",(K58-J58)/TIMEVALUE("1:00")*60) -> 45 | I58: =IF(H58="","",G58-H58) -> 15 | J58: 21:45:00 | K58: 22:30:00
A59: =IF(AND(B59=$B$1,K59=""),"２",IF(AND(B59=$B$1,K59<>""),"１",IF(B59>$B$1,"３","4"))) -> 4 | B59: 2017-04-05 | C59: h | D59: 21 | E59: done! | F59: ブログ更新 | G59: 90 | H59: =IF(OR(J59="",K59=""),"",(K59-J59)/TIMEVALUE("1:00")*60) -> 90 | I59: =IF(H59="","",G59-H59) -> 0 | J59: 22:30:00 | K59: 1
A60: =IF(AND(B60=$B$1,K60=""),"２",IF(AND(B60=$B$1,K60<>""),"１",IF(B60>$B$1,"３","4"))) -> 4 | B60: 2017-04-06 | C60: d | D60: 6 | E60: done! | F60: 朝食、SNSチェック | G60: 60 | H60: =IF(OR(J60="",K60=""),"",(K60-J60)/TIMEVALUE("1:00")*60) -> 70 | I60: =IF(H60="","",G60-H60) -> -10 | J60: 07:10:00 | K60: 08:20:00
A61: =IF(AND(B61=$B$1,K61=""),"２",IF(AND(B61=$B$1,K61<>""),"１",IF(B61>$B$1,"３","4"))) -> 4 | B61: 2017-04-06 | C61: d | D61: 8 | E61: done! | F61: タスク作成 | G61: 15 | H61: =IF(OR(J61="",K61=""),"",(K61-J61)/TIMEVALUE("1:00")*60) -> 20 | I61: =IF(H61="","",G61-H61) -> -5 | J61: 08:20:00 | K61: 08:40:00
A62: =IF(AND(B62=$B$1,K62=""),"２",IF(AND(B62=$B$1,K62<>""),"１",IF(B62>$B$1,"３","4"))) -> 4 | B62: 2017-04-06 | C62: h | D62: 8 | E62: done! | F62: gmail、yahooメールチェック（朝） | G62: 10 | H62: =IF(OR(J62="",K62=""),"",(K62-J62)/TIMEVALUE("1:00")*60) -> 6 | I62: =IF(H62="","",G62-H62) -> 4 | J62: 08:40:00 | K62: 08:46:00
A63: =IF(AND(B63=$B$1,K63=""),"２",IF(AND(B63=$B$1,K63<>""),"１",IF(B63>$B$1,"３","4"))) -> 4 | B63: 2017-04-06 | C63: h | D63: 10 | E63: done! | F63: STCメールチェック対応午前 | G63: 20 | H63: =IF(OR(J63="",K63=""),"",(K63-J63)/TIMEVALUE("1:00")*60) -> 10 | I63: =IF(H63="","",G63-H63) -> 10 | J63: 09:20:00 | K63: 09:30:00
A64: =IF(AND(B64=$B$1,K64=""),"２",IF(AND(B64=$B$1,K64<>""),"１",IF(B64>$B$1,"３","4"))) -> 4 | B64: 2017-04-06 | D64: 13 | E64: done! | F64: 東京バーディ連絡 | G64: 5 | H64: =IF(OR(J64="",K64=""),"",(K64-J64)/TIMEVALUE("1:00")*60) -> 5 | I64: =IF(H64="","",G64-H64) -> 9.769962617e-14 | J64: 09:35:00 | K64: 09:40:00
A65: =IF(AND(B65=$B$1,K65=""),"２",IF(AND(B65=$B$1,K65<>""),"１",IF(B65>$B$1,"３","4"))) -> 4 | B65: 2017-04-06 | D65: 9 | E65: done! | F65: トレーニングへ移動、SNS | G65: 60 | H65: =IF(OR(J65="",K65=""),"",(K65-J65)/TIMEVALUE("1:00")*60) -> 59 | I65: =IF(H65="","",G65-H65) -> 1 | J65: 08:46:00 | K65: 09:45:00
A66: =IF(AND(B66=$B$1,K66=""),"２",IF(AND(B66=$B$1,K66<>""),"１",IF(B66>$B$1,"３","4"))) -> 4 | B66: 2017-04-06 | D66: 10 | E66: done! | F66: トレーニング | G66: 75 | H66: =IF(OR(J66="",K66=""),"",(K66-J66)/TIMEVALUE("1:00")*60) -> 65 | I66: =IF(H66="","",G66-H66) -> 10 | J66: 09:45:00 | K66: 10:50:00
A67: =IF(AND(B67=$B$1,K67=""),"２",IF(AND(B67=$B$1,K67<>""),"１",IF(B67>$B$1,"３","4"))) -> 4 | B67: 2017-04-06 | D67: 11 | E67: done! | F67: トレーニングから帰宅 | G67: 60 | H67: =IF(OR(J67="",K67=""),"",(K67-J67)/TIMEVALUE("1:00")*60) -> 65 | I67: =IF(H67="","",G67-H67) -> -5 | J67: 10:50:00 | K67: 11:55:00
A68: =IF(AND(B68=$B$1,K68=""),"２",IF(AND(B68=$B$1,K68<>""),"１",IF(B68>$B$1,"３","4"))) -> 4 | B68: 2017-04-06 | C68: h | D68: 11 | E68: done! | F68: gmail、yahooメールチェック（午前） | G68: 10 | H68: =IF(OR(J68="",K68=""),"",(K68-J68)/TIMEVALUE("1:00")*60) -> 33 | I68: =IF(H68="","",G68-H68) -> -23 | J68: 11:55:00 | K68: 12:28:00
A69: =IF(AND(B69=$B$1,K69=""),"２",IF(AND(B69=$B$1,K69<>""),"１",IF(B69>$B$1,"３","4"))) -> 4 | B69: 2017-04-06 | C69: d | D69: 12 | E69: done! | F69: ランチ、SNSチェック | G69: 60 | H69: =IF(OR(J69="",K69=""),"",(K69-J69)/TIMEVALUE("1:00")*60) -> 87 | I69: =IF(H69="","",G69-H69) -> -27 | J69: 12:28:00 | K69: 13:55:00
A70: =IF(AND(B70=$B$1,K70=""),"２",IF(AND(B70=$B$1,K70<>""),"１",IF(B70>$B$1,"３","4"))) -> 4 | B70: 2017-04-06 | C70: h | D70: 14 | E70: done! | F70: gmail、yahooメールチェック（午後） | G70: 10 | H70: =IF(OR(J70="",K70=""),"",(K70-J70)/TIMEVALUE("1:00")*60) -> 1 | I70: =IF(H70="","",G70-H70) -> 9 | J70: 13:55:00 | K70: 13:56:00
A71: =IF(AND(B71=$B$1,K71=""),"２",IF(AND(B71=$B$1,K71<>""),"１",IF(B71>$B$1,"３","4"))) -> 4 | B71: 2017-04-06 | C71: h | D71: 14 | E71: done! | F71: STCメールチェック対応午後 | G71: 20 | H71: =IF(OR(J71="",K71=""),"",(K71-J71)/TIMEVALUE("1:00")*60) -> 3 | I71: =IF(H71="","",G71-H71) -> 17 | J71: 13:56:00 | K71: 13:59:00
A72: =IF(AND(B72=$B$1,K72=""),"２",IF(AND(B72=$B$1,K72<>""),"１",IF(B72>$B$1,"３","4"))) -> 4 | B72: 2017-04-06 | C72: d | D72: 10 | E72: done! | F72: 給与計算授業視聴 | G72: 120 | H72: =IF(OR(J72="",K72=""),"",(K72-J72)/TIMEVALUE("1:00")*60) -> 86 | I72: =IF(H72="","",G72-H72) -> 34 | J72: 13:59:00 | K72: 15:25:00
A73: =IF(AND(B73=$B$1,K73=""),"２",IF(AND(B73=$B$1,K73<>""),"１",IF(B73>$B$1,"３","4"))) -> 4 | B73: 2017-04-06 | C73: d | D73: 18 | E73: done! | F73: 交通費記録 | G73: 5 | H73: =IF(OR(J73="",K73=""),"",(K73-J73)/TIMEVALUE("1:00")*60) -> 4 | I73: =IF(H73="","",G73-H73) -> 1 | J73: 15:25:00 | K73: 15:29:00
A74: =IF(AND(B74=$B$1,K74=""),"２",IF(AND(B74=$B$1,K74<>""),"１",IF(B74>$B$1,"３","4"))) -> 4 | B74: 2017-04-06 | C74: h | D74: 17 | E74: done! | F74: STCメールチェック対応ラスト | G74: 20 | H74: =IF(OR(J74="",K74=""),"",(K74-J74)/TIMEVALUE("1:00")*60) -> 15 | I74: =IF(H74="","",G74-H74) -> 5 | J74: 16:45:00 | K74: 17:00:00
A75: =IF(AND(B75=$B$1,K75=""),"２",IF(AND(B75=$B$1,K75<>""),"１",IF(B75>$B$1,"３","4"))) -> 4 | B75: 2017-04-06 | C75: h | D75: 17 | E75: done! | F75: gmail、yahooメールチェック（夕方） | G75: 10 | H75: =IF(OR(J75="",K75=""),"",(K75-J75)/TIMEVALUE("1:00")*60) -> 10 | I75: =IF(H75="","",G75-H75) -> 3.552713679e-14 | J75: 17:00:00 | K75: 17:10:00
A76: =IF(AND(B76=$B$1,K76=""),"２",IF(AND(B76=$B$1,K76<>""),"１",IF(B76>$B$1,"３","4"))) -> 4 | B76: 2017-04-06 | C76: d | D76: 19 | E76: done! | F76: 夕食、SNSチェック | G76: 60 | H76: =IF(OR(J76="",K76=""),"",(K76-J76)/TIMEVALUE("1:00")*60) -> 100 | I76: =IF(H76="","",G76-H76) -> -40 | J76: 19:10:00 | K76: 20:50:00
A77: =IF(AND(B77=$B$1,K77=""),"２",IF(AND(B77=$B$1,K77<>""),"１",IF(B77>$B$1,"３","4"))) -> 4 | B77: 2017-04-06 | C77: h | D77: 19 | E77: done! | F77: gmail、yahooメールチェック（夜） | G77: 10 | H77: =IF(OR(J77="",K77=""),"",(K77-J77)/TIMEVALUE("1:00")*60) -> 10 | I77: =IF(H77="","",G77-H77) -> -1.243449788e-13 | J77: 20:50:00 | K77: 21:00:00
A78: =IF(AND(B78=$B$1,K78=""),"２",IF(AND(B78=$B$1,K78<>""),"１",IF(B78>$B$1,"３","4"))) -> 4 | B78: 2017-04-06 | C78: h | D78: 21 | E78: done! | F78: ブログ更新 | G78: 90 | H78: =IF(OR(J78="",K78=""),"",(K78-J78)/TIMEVALUE("1:00")*60) -> 100 | I78: =IF(H78="","",G78-H78) -> -10 | J78: 21:00:00 | K78: 22:40:00
A79: =IF(AND(B79=$B$1,K79=""),"２",IF(AND(B79=$B$1,K79<>""),"１",IF(B79>$B$1,"３","4"))) -> 4 | B79: 2017-04-07 | C79: h | D79: 8 | E79: done! | F79: gmail、yahooメールチェック（朝） | G79: 10 | H79: =IF(OR(J79="",K79=""),"",(K79-J79)/TIMEVALUE("1:00")*60) -> 12 | I79: =IF(H79="","",G79-H79) -> -2 | J79: 07:10:00 | K79: 07:22:00
A80: =IF(AND(B80=$B$1,K80=""),"２",IF(AND(B80=$B$1,K80<>""),"１",IF(B80>$B$1,"３","4"))) -> 4 | B80: 2017-04-07 | C80: d | D80: 6 | E80: done! | F80: 朝食、SNSチェック | G80: 60 | H80: =IF(OR(J80="",K80=""),"",(K80-J80)/TIMEVALUE("1:00")*60) -> 43 | I80: =IF(H80="","",G80-H80) -> 17 | J80: 07:22:00 | K80: 08:05:00
A81: =IF(AND(B81=$B$1,K81=""),"２",IF(AND(B81=$B$1,K81<>""),"１",IF(B81>$B$1,"３","4"))) -> 4 | B81: 2017-04-07 | C81: d | D81: 8 | E81: done! | F81: タスク作成 | G81: 15 | H81: =IF(OR(J81="",K81=""),"",(K81-J81)/TIMEVALUE("1:00")*60) -> 17 | I81: =IF(H81="","",G81-H81) -> -2 | J81: 08:05:00 | K81: 08:22:00
A82: =IF(AND(B82=$B$1,K82=""),"２",IF(AND(B82=$B$1,K82<>""),"１",IF(B82>$B$1,"３","4"))) -> 4 | B82: 2017-04-07 | C82: h | D82: 10 | E82: done! | F82: STCメールチェック対応午前 | G82: 20 | H82: =IF(OR(J82="",K82=""),"",(K82-J82)/TIMEVALUE("1:00")*60) -> 10 | I82: =IF(H82="","",G82-H82) -> 10 | J82: 10:30:00 | K82: 10:40:00
A83: =IF(AND(B83=$B$1,K83=""),"２",IF(AND(B83=$B$1,K83<>""),"１",IF(B83>$B$1,"３","4"))) -> 4 | B83: 2017-04-07 | D83: 9 | E83: done! | F83: 三洋テクノス訪問（給与計算関係） | G83: 210 | H83: =IF(OR(J83="",K83=""),"",(K83-J83)/TIMEVALUE("1:00")*60) -> 190 | I83: =IF(H83="","",G83-H83) -> 20 | J83: 09:00:00 | K83: 12:10:00
A84: =IF(AND(B84=$B$1,K84=""),"２",IF(AND(B84=$B$1,K84<>""),"１",IF(B84>$B$1,"３","4"))) -> 4 | B84: 2017-04-07 | C84: h | D84: 11 | E84: done! | F84: gmail、yahooメールチェック（午前） | G84: 10 | H84: =IF(OR(J84="",K84=""),"",(K84-J84)/TIMEVALUE("1:00")*60) -> 15 | I84: =IF(H84="","",G84-H84) -> -5 | J84: 12:10:00 | K84: 12:25:00
A85: =IF(AND(B85=$B$1,K85=""),"２",IF(AND(B85=$B$1,K85<>""),"１",IF(B85>$B$1,"３","4"))) -> 4 | B85: 2017-04-07 | C85: d | D85: 12 | E85: done! | F85: ランチ、SNSチェック | G85: 60 | H85: =IF(OR(J85="",K85=""),"",(K85-J85)/TIMEVALUE("1:00")*60) -> 50 | I85: =IF(H85="","",G85-H85) -> 10 | J85: 12:25:00 | K85: 13:15:00
A86: =IF(AND(B86=$B$1,K86=""),"２",IF(AND(B86=$B$1,K86<>""),"１",IF(B86>$B$1,"３","4"))) -> 4 | B86: 2017-04-07 | C86: h | D86: 14 | E86: done! | F86: gmail、yahooメールチェック（午後） | G86: 10 | H86: =IF(OR(J86="",K86=""),"",(K86-J86)/TIMEVALUE("1:00")*60) -> 10 | I86: =IF(H86="","",G86-H86) -> 3.552713679e-14 | J86: 15:15:00 | K86: 15:25:00
A87: =IF(AND(B87=$B$1,K87=""),"２",IF(AND(B87=$B$1,K87<>""),"１",IF(B87>$B$1,"３","4"))) -> 4 | B87: 2017-04-07 | C87: h | D87: 14 | E87: done! | F87: STCメールチェック対応午後 | G87: 20 | H87: =IF(OR(J87="",K87=""),"",(K87-J87)/TIMEVALUE("1:00")*60) -> 3 | I87: =IF(H87="","",G87-H87) -> 17 | J87: 15:25:00 | K87: 15:28:00
A88: =IF(AND(B88=$B$1,K88=""),"２",IF(AND(B88=$B$1,K88<>""),"１",IF(B88>$B$1,"３","4"))) -> 4 | B88: 2017-04-07 | D88: 14 | E88: done! | F88: 税務調査対策のDVD視聴 | G88: 120 | H88: =IF(OR(J88="",K88=""),"",(K88-J88)/TIMEVALUE("1:00")*60) -> 210 | I88: =IF(H88="","",G88-H88) -> -90 | J88: 13:30:00 | K88: 17:00:00
A89: =IF(AND(B89=$B$1,K89=""),"２",IF(AND(B89=$B$1,K89<>""),"１",IF(B89>$B$1,"３","4"))) -> 4 | B89: 2017-04-07 | C89: h | D89: 17 | E89: done! | F89: gmail、yahooメールチェック（夕方） | G89: 10 | H89: =IF(OR(J89="",K89=""),"",(K89-J89)/TIMEVALUE("1:00")*60) -> 5 | I89: =IF(H89="","",G89-H89) -> 5 | J89: 17:00:00 | K89: 17:05:00
A90: =IF(AND(B90=$B$1,K90=""),"２",IF(AND(B90=$B$1,K90<>""),"１",IF(B90>$B$1,"３","4"))) -> 4 | B90: 2017-04-07 | C90: h | D90: 17 | E90: done! | F90: STCメールチェック対応ラスト | G90: 20 | H90: =IF(OR(J90="",K90=""),"",(K90-J90)/TIMEVALUE("1:00")*60) -> 10 | I90: =IF(H90="","",G90-H90) -> 10 | J90: 17:05:00 | K90: 17:15:00
A91: =IF(AND(B91=$B$1,K91=""),"２",IF(AND(B91=$B$1,K91<>""),"１",IF(B91>$B$1,"３","4"))) -> 4 | B91: 2017-04-07 | D91: 17 | E91: done! | F91: STC電話（在庫表の到着状況確認） | G91: 5 | H91: =IF(OR(J91="",K91=""),"",(K91-J91)/TIMEVALUE("1:00")*60) -> 10 | I91: =IF(H91="","",G91-H91) -> -5 | J91: 17:15:00 | K91: 17:25:00
A92: =IF(AND(B92=$B$1,K92=""),"２",IF(AND(B92=$B$1,K92<>""),"１",IF(B92>$B$1,"３","4"))) -> 4 | B92: 2017-04-07 | C92: d | D92: 19 | E92: done! | F92: 夕食、SNSチェック | G92: 60 | H92: =IF(OR(J92="",K92=""),"",(K92-J92)/TIMEVALUE("1:00")*60) -> 45 | I92: =IF(H92="","",G92-H92) -> 15 | J92: 20:00:00 | K92: 20:45:00
A93: =IF(AND(B93=$B$1,K93=""),"２",IF(AND(B93=$B$1,K93<>""),"１",IF(B93>$B$1,"３","4"))) -> 4 | B93: 2017-04-07 | C93: h | D93: 21 | E93: done! | F93: ブログ更新 | G93: 90 | H93: =IF(OR(J93="",K93=""),"",(K93-J93)/TIMEVALUE("1:00")*60) -> 110 | I93: =IF(H93="","",G93-H93) -> -20 | J93: 20:45:00 | K93: 22:35:00
A94: =IF(AND(B94=$B$1,K94=""),"２",IF(AND(B94=$B$1,K94<>""),"１",IF(B94>$B$1,"３","4"))) -> 4 | B94: 2017-04-07 | C94: h | D94: 19 | E94: done! | F94: gmail、yahooメールチェック（夜） | G94: 10 | H94: =IF(OR(J94="",K94=""),"",(K94-J94)/TIMEVALUE("1:00")*60) -> 9 | I94: =IF(H94="","",G94-H94) -> 1 | J94: 22:35:00 | K94: 22:44:00
A95: =IF(AND(B95=$B$1,K95=""),"２",IF(AND(B95=$B$1,K95<>""),"１",IF(B95>$B$1,"３","4"))) -> 4 | B95: 2017-04-10 | C95: d | D95: 6 | E95: done! | F95: 朝食、SNSチェック | G95: 60 | H95: =IF(OR(J95="",K95=""),"",(K95-J95)/TIMEVALUE("1:00")*60) -> 70 | I95: =IF(H95="","",G95-H95) -> -10 | J95: 06:40:00 | K95: 07:50:00
A96: =IF(AND(B96=$B$1,K96=""),"２",IF(AND(B96=$B$1,K96<>""),"１",IF(B96>$B$1,"３","4"))) -> 4 | B96: 2017-04-10 | C96: h | D96: 8 | E96: done! | F96: gmail、yahooメールチェック（朝） | G96: 10 | H96: =IF(OR(J96="",K96=""),"",(K96-J96)/TIMEVALUE("1:00")*60) -> 10 | I96: =IF(H96="","",G96-H96) -> 3.552713679e-14 | J96: 07:50:00 | K96: 08:00:00
A97: =IF(AND(B97=$B$1,K97=""),"２",IF(AND(B97=$B$1,K97<>""),"１",IF(B97>$B$1,"３","4"))) -> 4 | B97: 2017-04-10 | C97: d | D97: 8 | E97: done! | F97: タスク作成 | G97: 15 | H97: =IF(OR(J97="",K97=""),"",(K97-J97)/TIMEVALUE("1:00")*60) -> 20 | I97: =IF(H97="","",G97-H97) -> -5 | J97: 08:00:00 | K97: 08:20:00
A98: =IF(AND(B98=$B$1,K98=""),"２",IF(AND(B98=$B$1,K98<>""),"１",IF(B98>$B$1,"３","4"))) -> 4 | B98: 2017-04-10 | D98: 9 | E98: done! | F98: 三洋テクノス給与計算の修正（雇用保険） | G98: 30 | H98: =IF(OR(J98="",K98=""),"",(K98-J98)/TIMEVALUE("1:00")*60) -> 20 | I98: =IF(H98="","",G98-H98) -> 10 | J98: 09:05:00 | K98: 09:25:00
A99: =IF(AND(B99=$B$1,K99=""),"２",IF(AND(B99=$B$1,K99<>""),"１",IF(B99>$B$1,"３","4"))) -> 4 | B99: 2017-04-10 | C99: h | D99: 10 | E99: done! | F99: STCメールチェック対応午前 | G99: 20 | H99: =IF(OR(J99="",K99=""),"",(K99-J99)/TIMEVALUE("1:00")*60) -> 5 | I99: =IF(H99="","",G99-H99) -> 15 | J99: 09:25:00 | K99: 09:30:00
A100: =IF(AND(B100=$B$1,K100=""),"２",IF(AND(B100=$B$1,K100<>""),"１",IF(B100>$B$1,"３","4"))) -> 4 | B100: 2017-04-10 | C100: h | D100: 11 | E100: done! | F100: gmail、yahooメールチェック（午前） | G100: 10 | H100: =IF(OR(J100="",K100=""),"",(K100-J100)/TIMEVALUE("1:00")*60) -> 10 | I100: =IF(H100="","",G100-H100) -> 3.552713679e-14 | J100: 09:50:00 | K100: 10:00:00
A101: =IF(AND(B101=$B$1,K101=""),"２",IF(AND(B101=$B$1,K101<>""),"１",IF(B101>$B$1,"３","4"))) -> 4 | B101: 2017-04-10 | C101: d | D101: 12 | E101: done! | F101: ランチ、SNSチェック | G101: 60 | H101: =IF(OR(J101="",K101=""),"",(K101-J101)/TIMEVALUE("1:00")*60) -> 45 | I101: =IF(H101="","",G101-H101) -> 15 | J101: 12:30:00 | K101: 13:15:00
A102: =IF(AND(B102=$B$1,K102=""),"２",IF(AND(B102=$B$1,K102<>""),"１",IF(B102>$B$1,"３","4"))) -> 4 | B102: 2017-04-10 | C102: h | D102: 14 | E102: done! | F102: gmail、yahooメールチェック（午後） | G102: 10 | H102: =IF(OR(J102="",K102=""),"",(K102-J102)/TIMEVALUE("1:00")*60) -> 10 | I102: =IF(H102="","",G102-H102) -> 3.552713679e-14 | J102: 14:00:00 | K102: 14:10:00
A103: =IF(AND(B103=$B$1,K103=""),"２",IF(AND(B103=$B$1,K103<>""),"１",IF(B103>$B$1,"３","4"))) -> 4 | B103: 2017-04-10 | C103: h | D103: 14 | E103: done! | F103: STCメールチェック対応午後 | G103: 20 | H103: =IF(OR(J103="",K103=""),"",(K103-J103)/TIMEVALUE("1:00")*60) -> 5 | I103: =IF(H103="","",G103-H103) -> 15 | J103: 14:10:00 | K103: 14:15:00
A104: =IF(AND(B104=$B$1,K104=""),"２",IF(AND(B104=$B$1,K104<>""),"１",IF(B104>$B$1,"３","4"))) -> 4 | B104: 2017-04-10 | D104: 10 | E104: done! | F104: 三洋テクノス税務調査 | G104: 420 | H104: =IF(OR(J104="",K104=""),"",(K104-J104)/TIMEVALUE("1:00")*60) -> 390 | I104: =IF(H104="","",G104-H104) -> 30 | J104: 10:00:00 | K104: 16:30:00
A105: =IF(AND(B105=$B$1,K105=""),"２",IF(AND(B105=$B$1,K105<>""),"１",IF(B105>$B$1,"３","4"))) -> 4 | B105: 2017-04-10 | C105: h | D105: 17 | E105: done! | F105: gmail、yahooメールチェック（夕方） | G105: 10 | H105: =IF(OR(J105="",K105=""),"",(K105-J105)/TIMEVALUE("1:00")*60) -> 10 | I105: =IF(H105="","",G105-H105) -> -1.243449788e-13 | J105: 16:30:00 | K105: 16:40:00
A106: =IF(AND(B106=$B$1,K106=""),"２",IF(AND(B106=$B$1,K106<>""),"１",IF(B106>$B$1,"３","4"))) -> 4 | B106: 2017-04-10 | C106: h | D106: 17 | E106: done! | F106: STCメールチェック対応ラスト | G106: 20 | H106: =IF(OR(J106="",K106=""),"",(K106-J106)/TIMEVALUE("1:00")*60) -> 1 | I106: =IF(H106="","",G106-H106) -> 19 | J106: 18:10:00 | K106: 18:11:00
A107: =IF(AND(B107=$B$1,K107=""),"２",IF(AND(B107=$B$1,K107<>""),"１",IF(B107>$B$1,"３","4"))) -> 4 | B107: 2017-04-10 | D107: 17 | E107: done! | F107: STC移動 | G107: 90 | H107: =IF(OR(J107="",K107=""),"",(K107-J107)/TIMEVALUE("1:00")*60) -> 60 | I107: =IF(H107="","",G107-H107) -> 30 | J107: 18:00:00 | K107: 19:00:00
A108: =IF(AND(B108=$B$1,K108=""),"２",IF(AND(B108=$B$1,K108<>""),"１",IF(B108>$B$1,"３","4"))) -> 4 | B108: 2017-04-10 | C108: d | D108: 19 | E108: done! | F108: 夕食、SNSチェック | G108: 60 | H108: =IF(OR(J108="",K108=""),"",(K108-J108)/TIMEVALUE("1:00")*60) -> 10 | I108: =IF(H108="","",G108-H108) -> 50 | J108: 20:50:00 | K108: 21:00:00
A109: =IF(AND(B109=$B$1,K109=""),"２",IF(AND(B109=$B$1,K109<>""),"１",IF(B109>$B$1,"３","4"))) -> 4 | B109: 2017-04-10 | D109: 18 | E109: done! | F109: STC在庫表チェック | G109: 180 | H109: =IF(OR(J109="",K109=""),"",(K109-J109)/TIMEVALUE("1:00")*60) -> 180 | I109: =IF(H109="","",G109-H109) -> 0 | J109: 19:00:00 | K109: 22:00:00
A110: =IF(AND(B110=$B$1,K110=""),"２",IF(AND(B110=$B$1,K110<>""),"１",IF(B110>$B$1,"３","4"))) -> 4 | B110: 2017-04-10 | D110: 21 | E110: done! | F110: STCから帰宅 | G110: 90 | H110: =IF(OR(J110="",K110=""),"",(K110-J110)/TIMEVALUE("1:00")*60) -> 60 | I110: =IF(H110="","",G110-H110) -> 30 | J110: 22:00:00 | K110: 23:00:00
A111: =IF(AND(B111=$B$1,K111=""),"２",IF(AND(B111=$B$1,K111<>""),"１",IF(B111>$B$1,"３","4"))) -> 4 | B111: 2017-04-10 | C111: h | D111: 21 | E111: done! | F111: ブログ更新 | G111: 90 | H111: =IF(OR(J111="",K111=""),"",(K111-J111)/TIMEVALUE("1:00")*60) -> 90 | I111: =IF(H111="","",G111-H111) -> 1.563194019e-13 | J111: 23:00:00 | K111: 1.020833333
A112: =IF(AND(B112=$B$1,K112=""),"２",IF(AND(B112=$B$1,K112<>""),"１",IF(B112>$B$1,"３","4"))) -> 4 | B112: 2017-04-11 | C112: d | D112: 8 | E112: done! | F112: タスク作成 | G112: 15 | H112: =IF(OR(J112="",K112=""),"",(K112-J112)/TIMEVALUE("1:00")*60) -> 10 | I112: =IF(H112="","",G112-H112) -> 5 | J112: 06:45:00 | K112: 06:55:00
A113: =IF(AND(B113=$B$1,K113=""),"２",IF(AND(B113=$B$1,K113<>""),"１",IF(B113>$B$1,"３","4"))) -> 4 | B113: 2017-04-11 | C113: d | D113: 6 | E113: done! | F113: 朝食、SNSチェック | G113: 60 | H113: =IF(OR(J113="",K113=""),"",(K113-J113)/TIMEVALUE("1:00")*60) -> 55 | I113: =IF(H113="","",G113-H113) -> 5 | J113: 06:55:00 | K113: 07:50:00
A114: =IF(AND(B114=$B$1,K114=""),"２",IF(AND(B114=$B$1,K114<>""),"１",IF(B114>$B$1,"３","4"))) -> 4 | B114: 2017-04-11 | C114: h | D114: 8 | E114: done! | F114: gmail、yahooメールチェック（朝） | G114: 10 | H114: =IF(OR(J114="",K114=""),"",(K114-J114)/TIMEVALUE("1:00")*60) -> 10 | I114: =IF(H114="","",G114-H114) -> 3.552713679e-14 | J114: 07:50:00 | K114: 08:00:00
A115: =IF(AND(B115=$B$1,K115=""),"２",IF(AND(B115=$B$1,K115<>""),"１",IF(B115>$B$1,"３","4"))) -> 4 | B115: 2017-04-11 | C115: h | D115: 11 | E115: done! | F115: gmail、yahooメールチェック（午前） | G115: 10 | H115: =IF(OR(J115="",K115=""),"",(K115-J115)/TIMEVALUE("1:00")*60) -> 5 | I115: =IF(H115="","",G115-H115) -> 5 | J115: 10:55:00 | K115: 11:00:00
A116: =IF(AND(B116=$B$1,K116=""),"２",IF(AND(B116=$B$1,K116<>""),"１",IF(B116>$B$1,"３","4"))) -> 4 | B116: 2017-04-11 | C116: h | D116: 10 | E116: done! | F116: STCメールチェック対応午前 | G116: 20 | H116: =IF(OR(J116="",K116=""),"",(K116-J116)/TIMEVALUE("1:00")*60) -> 10 | I116: =IF(H116="","",G116-H116) -> 10 | J116: 11:00:00 | K116: 11:10:00
A117: =IF(AND(B117=$B$1,K117=""),"２",IF(AND(B117=$B$1,K117<>""),"１",IF(B117>$B$1,"３","4"))) -> 4 | B117: 2017-04-11 | D117: 9 | E117: done! | F117: 三洋テクノス税務調査 | G117: 300 | H117: =IF(OR(J117="",K117=""),"",(K117-J117)/TIMEVALUE("1:00")*60) -> 335 | I117: =IF(H117="","",G117-H117) -> -35 | J117: 08:45:00 | K117: 14:20:00
A118: =IF(AND(B118=$B$1,K118=""),"２",IF(AND(B118=$B$1,K118<>""),"１",IF(B118>$B$1,"３","4"))) -> 4 | B118: 2017-04-11 | C118: d | D118: 12 | E118: done! | F118: ランチ、SNSチェック | G118: 60 | H118: =IF(OR(J118="",K118=""),"",(K118-J118)/TIMEVALUE("1:00")*60) -> 25 | I118: =IF(H118="","",G118-H118) -> 35 | J118: 14:20:00 | K118: 14:45:00
A119: =IF(AND(B119=$B$1,K119=""),"２",IF(AND(B119=$B$1,K119<>""),"１",IF(B119>$B$1,"３","4"))) -> 4 | B119: 2017-04-11 | C119: h | D119: 14 | E119: done! | F119: STCメールチェック対応午後 | G119: 20 | H119: =IF(OR(J119="",K119=""),"",(K119-J119)/TIMEVALUE("1:00")*60) -> 20 | I119: =IF(H119="","",G119-H119) -> 7.105427358e-14 | J119: 14:45:00 | K119: 15:05:00
A120: =IF(AND(B120=$B$1,K120=""),"２",IF(AND(B120=$B$1,K120<>""),"１",IF(B120>$B$1,"３","4"))) -> 4 | B120: 2017-04-11 | C120: h | D120: 14 | E120: done! | F120: gmail、yahooメールチェック（午後） | G120: 10 | H120: =IF(OR(J120="",K120=""),"",(K120-J120)/TIMEVALUE("1:00")*60) -> 5 | I120: =IF(H120="","",G120-H120) -> 5 | J120: 15:05:00 | K120: 15:10:00
A121: =IF(AND(B121=$B$1,K121=""),"２",IF(AND(B121=$B$1,K121<>""),"１",IF(B121>$B$1,"３","4"))) -> 4 | B121: 2017-04-11 | C121: h | D121: 17 | E121: done! | F121: gmail、yahooメールチェック（夕方） | G121: 10 | H121: =IF(OR(J121="",K121=""),"",(K121-J121)/TIMEVALUE("1:00")*60) -> 10 | I121: =IF(H121="","",G121-H121) -> 3.552713679e-14 | J121: 17:00:00 | K121: 17:10:00
A122: =IF(AND(B122=$B$1,K122=""),"２",IF(AND(B122=$B$1,K122<>""),"１",IF(B122>$B$1,"３","4"))) -> 4 | B122: 2017-04-11 | C122: h | D122: 17 | E122: done! | F122: STCメールチェック対応ラスト | G122: 20 | H122: =IF(OR(J122="",K122=""),"",(K122-J122)/TIMEVALUE("1:00")*60) -> 5 | I122: =IF(H122="","",G122-H122) -> 15 | J122: 17:10:00 | K122: 17:15:00
A123: =IF(AND(B123=$B$1,K123=""),"２",IF(AND(B123=$B$1,K123<>""),"１",IF(B123>$B$1,"３","4"))) -> 4 | B123: 2017-04-11 | C123: h | D123: 19 | E123: done! | F123: gmail、yahooメールチェック（夜） | G123: 10 | H123: =IF(OR(J123="",K123=""),"",(K123-J123)/TIMEVALUE("1:00")*60) -> 5 | I123: =IF(H123="","",G123-H123) -> 5 | J123: 19:40:00 | K123: 19:45:00
A124: =IF(AND(B124=$B$1,K124=""),"２",IF(AND(B124=$B$1,K124<>""),"１",IF(B124>$B$1,"３","4"))) -> 4 | B124: 2017-04-11 | D124: 19 | E124: done! | F124: トレーニングへ移動、SNS | G124: 60 | H124: =IF(OR(J124="",K124=""),"",(K124-J124)/TIMEVALUE("1:00")*60) -> 55 | I124: =IF(H124="","",G124-H124) -> 5 | J124: 18:50:00 | K124: 19:45:00
A125: =IF(AND(B125=$B$1,K125=""),"２",IF(AND(B125=$B$1,K125<>""),"１",IF(B125>$B$1,"３","4"))) -> 4 | B125: 2017-04-11 | D125: 20 | E125: done! | F125: トレーニング | G125: 75 | H125: =IF(OR(J125="",K125=""),"",(K125-J125)/TIMEVALUE("1:00")*60) -> 65 | I125: =IF(H125="","",G125-H125) -> 10 | J125: 19:45:00 | K125: 20:50:00
A126: =IF(AND(B126=$B$1,K126=""),"２",IF(AND(B126=$B$1,K126<>""),"１",IF(B126>$B$1,"３","4"))) -> 4 | B126: 2017-04-11 | D126: 21 | E126: done! | F126: トレーニングから帰宅 | G126: 60 | H126: =IF(OR(J126="",K126=""),"",(K126-J126)/TIMEVALUE("1:00")*60) -> 50 | I126: =IF(H126="","",G126-H126) -> 10 | J126: 20:50:00 | K126: 21:40:00
A127: =IF(AND(B127=$B$1,K127=""),"２",IF(AND(B127=$B$1,K127<>""),"１",IF(B127>$B$1,"３","4"))) -> 4 | B127: 2017-04-11 | C127: d | D127: 19 | E127: done! | F127: 夕食、SNSチェック | G127: 60 | H127: =IF(OR(J127="",K127=""),"",(K127-J127)/TIMEVALUE("1:00")*60) -> 30 | I127: =IF(H127="","",G127-H127) -> 30 | J127: 21:40:00 | K127: 22:10:00
A128: =IF(AND(B128=$B$1,K128=""),"２",IF(AND(B128=$B$1,K128<>""),"１",IF(B128>$B$1,"３","4"))) -> 4 | B128: 2017-04-11 | C128: h | D128: 21 | E128: done! | F128: ブログ更新 | G128: 90 | H128: =IF(OR(J128="",K128=""),"",(K128-J128)/TIMEVALUE("1:00")*60) -> 100 | I128: =IF(H128="","",G128-H128) -> -10 | J128: 22:10:00 | K128: 23:50:00
A129: =IF(AND(B129=$B$1,K129=""),"２",IF(AND(B129=$B$1,K129<>""),"１",IF(B129>$B$1,"３","4"))) -> 4 | B129: 2017-04-12 | C129: d | D129: 6 | E129: done! | F129: 朝食、SNSチェック | G129: 60 | H129: =IF(OR(J129="",K129=""),"",(K129-J129)/TIMEVALUE("1:00")*60) -> 35 | I129: =IF(H129="","",G129-H129) -> 25 | J129: 06:10:00 | K129: 06:45:00
A130: =IF(AND(B130=$B$1,K130=""),"２",IF(AND(B130=$B$1,K130<>""),"１",IF(B130>$B$1,"３","4"))) -> 4 | B130: 2017-04-12 | D130: 7 | E130: done! | F130: STC移動 | G130: 90 | H130: =IF(OR(J130="",K130=""),"",(K130-J130)/TIMEVALUE("1:00")*60) -> 85 | I130: =IF(H130="","",G130-H130) -> 5 | J130: 06:45:00 | K130: 08:10:00
A131: =IF(AND(B131=$B$1,K131=""),"２",IF(AND(B131=$B$1,K131<>""),"１",IF(B131>$B$1,"３","4"))) -> 4 | B131: 2017-04-12 | C131: h | D131: 8 | E131: done! | F131: gmail、yahooメールチェック（朝） | G131: 10 | H131: =IF(OR(J131="",K131=""),"",(K131-J131)/TIMEVALUE("1:00")*60) -> 2 | I131: =IF(H131="","",G131-H131) -> 8 | J131: 08:10:00 | K131: 08:12:00
A132: =IF(AND(B132=$B$1,K132=""),"２",IF(AND(B132=$B$1,K132<>""),"１",IF(B132>$B$1,"３","4"))) -> 4 | B132: 2017-04-12 | D132: 8 | E132: done! | F132: ルフトメール返信 | G132: 5 | H132: =IF(OR(J132="",K132=""),"",(K132-J132)/TIMEVALUE("1:00")*60) -> 3 | I132: =IF(H132="","",G132-H132) -> 2 | J132: 08:12:00 | K132: 08:15:00
A133: =IF(AND(B133=$B$1,K133=""),"２",IF(AND(B133=$B$1,K133<>""),"１",IF(B133>$B$1,"３","4"))) -> 4 | B133: 2017-04-12 | C133: d | D133: 8 | E133: done! | F133: タスク作成 | G133: 15 | H133: =IF(OR(J133="",K133=""),"",(K133-J133)/TIMEVALUE("1:00")*60) -> 20 | I133: =IF(H133="","",G133-H133) -> -5 | J133: 08:15:00 | K133: 08:35:00
A134: =IF(AND(B134=$B$1,K134=""),"２",IF(AND(B134=$B$1,K134<>""),"１",IF(B134>$B$1,"３","4"))) -> 4 | B134: 2017-04-12 | D134: 8 | E134: done! | F134: 立替金明細確認、依頼 | G134: 45 | H134: =IF(OR(J134="",K134=""),"",(K134-J134)/TIMEVALUE("1:00")*60) -> 47 | I134: =IF(H134="","",G134-H134) -> -2 | J134: 08:35:00 | K134: 09:22:00
A135: =IF(AND(B135=$B$1,K135=""),"２",IF(AND(B135=$B$1,K135<>""),"１",IF(B135>$B$1,"３","4"))) -> 4 | B135: 2017-04-12 | D135: 9 | E135: done! | F135: 伝票確認（貸倒引当金） | G135: 15 | H135: =IF(OR(J135="",K135=""),"",(K135-J135)/TIMEVALUE("1:00")*60) -> 11 | I135: =IF(H135="","",G135-H135) -> 4 | J135: 09:22:00 | K135: 09:33:00
A136: =IF(AND(B136=$B$1,K136=""),"２",IF(AND(B136=$B$1,K136<>""),"１",IF(B136>$B$1,"３","4"))) -> 4 | B136: 2017-04-12 | D136: 13 | E136: done! | F136: 在庫評価資料（産業資材） | G136: 10 | H136: =IF(OR(J136="",K136=""),"",(K136-J136)/TIMEVALUE("1:00")*60) -> 10 | I136: =IF(H136="","",G136-H136) -> 3.552713679e-14 | J136: 10:00:00 | K136: 10:10:00
A137: =IF(AND(B137=$B$1,K137=""),"２",IF(AND(B137=$B$1,K137<>""),"１",IF(B137>$B$1,"３","4"))) -> 4 | B137: 2017-04-12 | D137: 13 | E137: done! | F137: 在庫表への資料添付 | G137: 15 | H137: =IF(OR(J137="",K137=""),"",(K137-J137)/TIMEVALUE("1:00")*60) -> 10 | I137: =IF(H137="","",G137-H137) -> 5 | J137: 10:10:00 | K137: 10:20:00
A138: =IF(AND(B138=$B$1,K138=""),"２",IF(AND(B138=$B$1,K138<>""),"１",IF(B138>$B$1,"３","4"))) -> 4 | B138: 2017-04-12 | D138: 9 | E138: done! | F138: 消費税相殺 | G138: 60 | H138: =IF(OR(J138="",K138=""),"",(K138-J138)/TIMEVALUE("1:00")*60) -> 147 | I138: =IF(H138="","",G138-H138) -> -87 | J138: 09:33:00 | K138: 12:00:00
A139: =IF(AND(B139=$B$1,K139=""),"２",IF(AND(B139=$B$1,K139<>""),"１",IF(B139>$B$1,"３","4"))) -> 4 | B139: 2017-04-12 | C139: d | D139: 12 | E139: done! | F139: ランチ、SNSチェック | G139: 60 | H139: =IF(OR(J139="",K139=""),"",(K139-J139)/TIMEVALUE("1:00")*60) -> 40 | I139: =IF(H139="","",G139-H139) -> 20 | J139: 12:05:00 | K139: 12:45:00
A140: =IF(AND(B140=$B$1,K140=""),"２",IF(AND(B140=$B$1,K140<>""),"１",IF(B140>$B$1,"３","4"))) -> 4 | B140: 2017-04-12 | C140: h | D140: 11 | E140: done! | F140: gmail、yahooメールチェック（午前） | G140: 10 | H140: =IF(OR(J140="",K140=""),"",(K140-J140)/TIMEVALUE("1:00")*60) -> 10 | I140: =IF(H140="","",G140-H140) -> 3.552713679e-14 | J140: 12:45:00 | K140: 12:55:00
A141: =IF(AND(B141=$B$1,K141=""),"２",IF(AND(B141=$B$1,K141<>""),"１",IF(B141>$B$1,"３","4"))) -> 4 | B141: 2017-04-12 | D141: 11 | E141: done! | F141: 法人税計算 | G141: 30 | H141: =IF(OR(J141="",K141=""),"",(K141-J141)/TIMEVALUE("1:00")*60) -> 10 | I141: =IF(H141="","",G141-H141) -> 20 | J141: 12:55:00 | K141: 13:05:00
A142: =IF(AND(B142=$B$1,K142=""),"２",IF(AND(B142=$B$1,K142<>""),"１",IF(B142>$B$1,"３","4"))) -> 4 | B142: 2017-04-12 | D142: 13 | E142: done! | F142: 回覧物確認午後 | G142: 15 | H142: =IF(OR(J142="",K142=""),"",(K142-J142)/TIMEVALUE("1:00")*60) -> 25 | I142: =IF(H142="","",G142-H142) -> -10 | J142: 13:05:00 | K142: 13:30:00
A143: =IF(AND(B143=$B$1,K143=""),"２",IF(AND(B143=$B$1,K143<>""),"１",IF(B143>$B$1,"３","4"))) -> 4 | B143: 2017-04-12 | C143: h | D143: 14 | E143: done! | F143: gmail、yahooメールチェック（午後） | G143: 10 | H143: =IF(OR(J143="",K143=""),"",(K143-J143)/TIMEVALUE("1:00")*60) -> 10 | I143: =IF(H143="","",G143-H143) -> 3.552713679e-14 | J143: 13:30:00 | K143: 13:40:00
A144: =IF(AND(B144=$B$1,K144=""),"２",IF(AND(B144=$B$1,K144<>""),"１",IF(B144>$B$1,"３","4"))) -> 4 | B144: 2017-04-12 | D144: 14 | E144: done! | F144: ルフト連結RP作成 | G144: 90 | H144: =IF(OR(J144="",K144=""),"",(K144-J144)/TIMEVALUE("1:00")*60) -> 180 | I144: =IF(H144="","",G144-H144) -> -90 | J144: 15:00:00 | K144: 18:00:00
A145: =IF(AND(B145=$B$1,K145=""),"２",IF(AND(B145=$B$1,K145<>""),"１",IF(B145>$B$1,"３","4"))) -> 4 | B145: 2017-04-12 | C145: d | D145: 19 | E145: done! | F145: 夕食、SNSチェック | G145: 60 | H145: =IF(OR(J145="",K145=""),"",(K145-J145)/TIMEVALUE("1:00")*60) -> 30 | I145: =IF(H145="","",G145-H145) -> 30 | J145: 20:20:00 | K145: 20:50:00
A146: =IF(AND(B146=$B$1,K146=""),"２",IF(AND(B146=$B$1,K146<>""),"１",IF(B146>$B$1,"３","4"))) -> 4 | B146: 2017-04-12 | D146: 19 | E146: done! | F146: STCから帰宅 | G146: 90 | H146: =IF(OR(J146="",K146=""),"",(K146-J146)/TIMEVALUE("1:00")*60) -> 90 | I146: =IF(H146="","",G146-H146) -> 0 | J146: 20:50:00 | K146: 22:20:00
A147: =IF(AND(B147=$B$1,K147=""),"２",IF(AND(B147=$B$1,K147<>""),"１",IF(B147>$B$1,"３","4"))) -> 4 | B147: 2017-04-12 | C147: h | D147: 21 | E147: done! | F147: ブログ更新 | G147: 90 | H147: =IF(OR(J147="",K147=""),"",(K147-J147)/TIMEVALUE("1:00")*60) -> 70 | I147: =IF(H147="","",G147-H147) -> 20 | J147: 22:20:00 | K147: 23:30:00
A148: =IF(AND(B148=$B$1,K148=""),"２",IF(AND(B148=$B$1,K148<>""),"１",IF(B148>$B$1,"３","4"))) -> 4 | B148: 2017-04-13 | C148: d | D148: 6 | E148: done! | F148: 朝食、SNSチェック | G148: 60 | H148: =IF(OR(J148="",K148=""),"",(K148-J148)/TIMEVALUE("1:00")*60) -> 20 | I148: =IF(H148="","",G148-H148) -> 40 | J148: 07:25:00 | K148: 07:45:00
A149: =IF(AND(B149=$B$1,K149=""),"２",IF(AND(B149=$B$1,K149<>""),"１",IF(B149>$B$1,"３","4"))) -> 4 | B149: 2017-04-13 | C149: h | D149: 8 | E149: done! | F149: gmail、yahooメールチェック（朝） | G149: 10 | H149: =IF(OR(J149="",K149=""),"",(K149-J149)/TIMEVALUE("1:00")*60) -> 15 | I149: =IF(H149="","",G149-H149) -> -5 | J149: 07:45:00 | K149: 08:00:00
A150: =IF(AND(B150=$B$1,K150=""),"２",IF(AND(B150=$B$1,K150<>""),"１",IF(B150>$B$1,"３","4"))) -> 4 | B150: 2017-04-13 | C150: d | D150: 8 | E150: done! | F150: タスク作成 | G150: 15 | H150: =IF(OR(J150="",K150=""),"",(K150-J150)/TIMEVALUE("1:00")*60) -> 15 | I150: =IF(H150="","",G150-H150) -> -2.664535259e-14 | J150: 08:00:00 | K150: 08:15:00
A151: =IF(AND(B151=$B$1,K151=""),"２",IF(AND(B151=$B$1,K151<>""),"１",IF(B151>$B$1,"３","4"))) -> 4 | B151: 2017-04-13 | C151: h | D151: 10 | E151: done! | F151: STCメールチェック対応午前 | G151: 20 | H151: =IF(OR(J151="",K151=""),"",(K151-J151)/TIMEVALUE("1:00")*60) -> 15 | I151: =IF(H151="","",G151-H151) -> 5 | J151: 09:35:00 | K151: 09:50:00
A152: =IF(AND(B152=$B$1,K152=""),"２",IF(AND(B152=$B$1,K152<>""),"１",IF(B152>$B$1,"３","4"))) -> 4 | B152: 2017-04-13 | D152: 10 | E152: done! | F152: トレーニングへ移動、SNS | G152: 60 | H152: =IF(OR(J152="",K152=""),"",(K152-J152)/TIMEVALUE("1:00")*60) -> 60 | I152: =IF(H152="","",G152-H152) -> 5.684341886e-14 | J152: 10:00:00 | K152: 11:00:00
A153: =IF(AND(B153=$B$1,K153=""),"２",IF(AND(B153=$B$1,K153<>""),"１",IF(B153>$B$1,"３","4"))) -> 4 | B153: 2017-04-13 | D153: 11 | E153: done! | F153: トレーニング | G153: 75 | H153: =IF(OR(J153="",K153=""),"",(K153-J153)/TIMEVALUE("1:00")*60) -> 70 | I153: =IF(H153="","",G153-H153) -> 5 | J153: 11:00:00 | K153: 12:10:00
A154: =IF(AND(B154=$B$1,K154=""),"２",IF(AND(B154=$B$1,K154<>""),"１",IF(B154>$B$1,"３","4"))) -> 4 | B154: 2017-04-13 | C154: h | D154: 11 | E154: done! | F154: gmail、yahooメールチェック（午前） | G154: 10 | H154: =IF(OR(J154="",K154=""),"",(K154-J154)/TIMEVALUE("1:00")*60) -> 15 | I154: =IF(H154="","",G154-H154) -> -5 | J154: 12:00:00 | K154: 12:15:00
A155: =IF(AND(B155=$B$1,K155=""),"２",IF(AND(B155=$B$1,K155<>""),"１",IF(B155>$B$1,"３","4"))) -> 4 | B155: 2017-04-13 | D155: 12 | E155: done! | F155: トレーニングから帰宅 | G155: 60 | H155: =IF(OR(J155="",K155=""),"",(K155-J155)/TIMEVALUE("1:00")*60) -> 40 | I155: =IF(H155="","",G155-H155) -> 20 | J155: 12:10:00 | K155: 12:50:00
A156: =IF(AND(B156=$B$1,K156=""),"２",IF(AND(B156=$B$1,K156<>""),"１",IF(B156>$B$1,"３","4"))) -> 4 | B156: 2017-04-13 | C156: d | D156: 12 | E156: done! | F156: ランチ、SNSチェック | G156: 60 | H156: =IF(OR(J156="",K156=""),"",(K156-J156)/TIMEVALUE("1:00")*60) -> 30 | I156: =IF(H156="","",G156-H156) -> 30 | J156: 12:50:00 | K156: 13:20:00
A157: =IF(AND(B157=$B$1,K157=""),"２",IF(AND(B157=$B$1,K157<>""),"１",IF(B157>$B$1,"３","4"))) -> 4 | B157: 2017-04-13 | C157: h | D157: 14 | E157: done! | F157: gmail、yahooメールチェック（午後） | G157: 10 | H157: =IF(OR(J157="",K157=""),"",(K157-J157)/TIMEVALUE("1:00")*60) -> 10 | I157: =IF(H157="","",G157-H157) -> 3.552713679e-14 | J157: 14:00:00 | K157: 14:10:00
A158: =IF(AND(B158=$B$1,K158=""),"２",IF(AND(B158=$B$1,K158<>""),"１",IF(B158>$B$1,"３","4"))) -> 4 | B158: 2017-04-13 | C158: h | D158: 14 | E158: done! | F158: STCメールチェック対応午後 | G158: 20 | H158: =IF(OR(J158="",K158=""),"",(K158-J158)/TIMEVALUE("1:00")*60) -> 5 | I158: =IF(H158="","",G158-H158) -> 15 | J158: 16:00:00 | K158: 16:05:00
A159: =IF(AND(B159=$B$1,K159=""),"２",IF(AND(B159=$B$1,K159<>""),"１",IF(B159>$B$1,"３","4"))) -> 4 | B159: 2017-04-13 | D159: 8 | E159: done! | F159: Mac研究（印鑑） | G159: 60 | H159: =IF(OR(J159="",K159=""),"",(K159-J159)/TIMEVALUE("1:00")*60) -> 180 | I159: =IF(H159="","",G159-H159) -> -120 | J159: 13:20:00 | K159: 16:20:00
A160: =IF(AND(B160=$B$1,K160=""),"２",IF(AND(B160=$B$1,K160<>""),"１",IF(B160>$B$1,"３","4"))) -> 4 | B160: 2017-04-13 | C160: h | D160: 17 | E160: done! | F160: gmail、yahooメールチェック（夕方） | G160: 10 | H160: =IF(OR(J160="",K160=""),"",(K160-J160)/TIMEVALUE("1:00")*60) -> 10 | I160: =IF(H160="","",G160-H160) -> 3.552713679e-14 | J160: 17:00:00 | K160: 17:10:00
A161: =IF(AND(B161=$B$1,K161=""),"２",IF(AND(B161=$B$1,K161<>""),"１",IF(B161>$B$1,"３","4"))) -> 4 | B161: 2017-04-13 | C161: h | D161: 17 | E161: done! | F161: STCメールチェック対応ラスト | G161: 20 | H161: =IF(OR(J161="",K161=""),"",(K161-J161)/TIMEVALUE("1:00")*60) -> 20 | I161: =IF(H161="","",G161-H161) -> 7.105427358e-14 | J161: 17:10:00 | K161: 17:30:00
A162: =IF(AND(B162=$B$1,K162=""),"２",IF(AND(B162=$B$1,K162<>""),"１",IF(B162>$B$1,"３","4"))) -> 4 | B162: 2017-04-13 | C162: h | D162: 19 | E162: done! | F162: gmail、yahooメールチェック（夜） | G162: 10 | H162: =IF(OR(J162="",K162=""),"",(K162-J162)/TIMEVALUE("1:00")*60) -> 5 | I162: =IF(H162="","",G162-H162) -> 5 | J162: 19:00:00 | K162: 19:05:00
A163: =IF(AND(B163=$B$1,K163=""),"２",IF(AND(B163=$B$1,K163<>""),"１",IF(B163>$B$1,"３","4"))) -> 4 | B163: 2017-04-13 | C163: d | D163: 19 | E163: done! | F163: 夕食、SNSチェック | G163: 60 | H163: =IF(OR(J163="",K163=""),"",(K163-J163)/TIMEVALUE("1:00")*60) -> 60 | I163: =IF(H163="","",G163-H163) -> 5.684341886e-14 | J163: 20:00:00 | K163: 21:00:00
A164: =IF(AND(B164=$B$1,K164=""),"２",IF(AND(B164=$B$1,K164<>""),"１",IF(B164>$B$1,"３","4"))) -> 4 | B164: 2017-04-13 | C164: h | D164: 21 | E164: done! | F164: ブログ更新 | G164: 90 | H164: =IF(OR(J164="",K164=""),"",(K164-J164)/TIMEVALUE("1:00")*60) -> 150 | I164: =IF(H164="","",G164-H164) -> -60 | J164: 22:00:00 | K164: 1.020833333
A165: =IF(AND(B165=$B$1,K165=""),"２",IF(AND(B165=$B$1,K165<>""),"１",IF(B165>$B$1,"３","4"))) -> 4 | B165: 2017-04-14 | C165: d | D165: 6 | E165: done! | F165: 朝食、SNSチェック | G165: 60 | H165: =IF(OR(J165="",K165=""),"",(K165-J165)/TIMEVALUE("1:00")*60) -> 60 | I165: =IF(H165="","",G165-H165) -> 5.684341886e-14 | J165: 08:20:00 | K165: 09:20:00
A166: =IF(AND(B166=$B$1,K166=""),"２",IF(AND(B166=$B$1,K166<>""),"１",IF(B166>$B$1,"３","4"))) -> 4 | B166: 2017-04-14 | C166: d | D166: 8 | E166: done! | F166: タスク作成 | G166: 15 | H166: =IF(OR(J166="",K166=""),"",(K166-J166)/TIMEVALUE("1:00")*60) -> 10 | I166: =IF(H166="","",G166-H166) -> 5 | J166: 09:20:00 | K166: 09:30:00
A167: =IF(AND(B167=$B$1,K167=""),"２",IF(AND(B167=$B$1,K167<>""),"１",IF(B167>$B$1,"３","4"))) -> 4 | B167: 2017-04-14 | C167: h | D167: 8 | E167: done! | F167: gmail、yahooメールチェック（朝） | G167: 10 | H167: =IF(OR(J167="",K167=""),"",(K167-J167)/TIMEVALUE("1:00")*60) -> 15 | I167: =IF(H167="","",G167-H167) -> -5 | J167: 09:30:00 | K167: 09:45:00
A168: =IF(AND(B168=$B$1,K168=""),"２",IF(AND(B168=$B$1,K168<>""),"１",IF(B168>$B$1,"３","4"))) -> 4 | B168: 2017-04-14 | D168: 10 | E168: done! | F168: 請求書送付（ソート、ルフト、テクノス） | G168: 30 | H168: =IF(OR(J168="",K168=""),"",(K168-J168)/TIMEVALUE("1:00")*60) -> 25 | I168: =IF(H168="","",G168-H168) -> 5 | J168: 09:45:00 | K168: 10:10:00
A169: =IF(AND(B169=$B$1,K169=""),"２",IF(AND(B169=$B$1,K169<>""),"１",IF(B169>$B$1,"３","4"))) -> 4 | B169: 2017-04-14 | C169: h | D169: 10 | E169: done! | F169: STCメールチェック対応午前 | G169: 20 | H169: =IF(OR(J169="",K169=""),"",(K169-J169)/TIMEVALUE("1:00")*60) -> 1 | I169: =IF(H169="","",G169-H169) -> 19 | J169: 10:10:00 | K169: 10:11:00
A170: =IF(AND(B170=$B$1,K170=""),"２",IF(AND(B170=$B$1,K170<>""),"１",IF(B170>$B$1,"３","4"))) -> 4 | B170: 2017-04-14 | C170: h | D170: 11 | E170: done! | F170: gmail、yahooメールチェック（午前） | G170: 10 | H170: =IF(OR(J170="",K170=""),"",(K170-J170)/TIMEVALUE("1:00")*60) -> 20 | I170: =IF(H170="","",G170-H170) -> -10 | J170: 10:30:00 | K170: 10:50:00
A171: =IF(AND(B171=$B$1,K171=""),"２",IF(AND(B171=$B$1,K171<>""),"１",IF(B171>$B$1,"３","4"))) -> 4 | B171: 2017-04-14 | C171: d | D171: 12 | E171: done! | F171: ランチ、SNSチェック | G171: 60 | H171: =IF(OR(J171="",K171=""),"",(K171-J171)/TIMEVALUE("1:00")*60) -> 25 | I171: =IF(H171="","",G171-H171) -> 35 | J171: 11:20:00 | K171: 11:45:00
A172: =IF(AND(B172=$B$1,K172=""),"２",IF(AND(B172=$B$1,K172<>""),"１",IF(B172>$B$1,"３","4"))) -> 4 | B172: 2017-04-14 | D172: 12 | E172: done! | F172: STCへ移動 | G172: 90 | H172: =IF(OR(J172="",K172=""),"",(K172-J172)/TIMEVALUE("1:00")*60) -> 75 | I172: =IF(H172="","",G172-H172) -> 15 | J172: 11:45:00 | K172: 13:00:00
A173: =IF(AND(B173=$B$1,K173=""),"２",IF(AND(B173=$B$1,K173<>""),"１",IF(B173>$B$1,"３","4"))) -> 4 | B173: 2017-04-14 | D173: 13 | E173: done! | F173: STS連結RP確認 | G173: 90 | H173: =IF(OR(J173="",K173=""),"",(K173-J173)/TIMEVALUE("1:00")*60) -> 60 | I173: =IF(H173="","",G173-H173) -> 30 | J173: 13:00:00 | K173: 14:00:00
A174: =IF(AND(B174=$B$1,K174=""),"２",IF(AND(B174=$B$1,K174<>""),"１",IF(B174>$B$1,"３","4"))) -> 4 | B174: 2017-04-14 | D174: 13 | E174: done! | F174: ルフト連結RP作成 | G174: 90 | H174: =IF(OR(J174="",K174=""),"",(K174-J174)/TIMEVALUE("1:00")*60) -> 120 | I174: =IF(H174="","",G174-H174) -> -30 | J174: 14:00:00 | K174: 16:00:00
A175: =IF(AND(B175=$B$1,K175=""),"２",IF(AND(B175=$B$1,K175<>""),"１",IF(B175>$B$1,"３","4"))) -> 4 | B175: 2017-04-14 | D175: 17 | E175: done! | F175: STCから品川へ移動 | G175: 45 | H175: =IF(OR(J175="",K175=""),"",(K175-J175)/TIMEVALUE("1:00")*60) -> 50 | I175: =IF(H175="","",G175-H175) -> -5 | J175: 17:00:00 | K175: 17:50:00
A176: =IF(AND(B176=$B$1,K176=""),"２",IF(AND(B176=$B$1,K176<>""),"１",IF(B176>$B$1,"３","4"))) -> 4 | B176: 2017-04-14 | D176: 18 | E176: done! | F176: 管理会計セミナー | G176: 120 | H176: =IF(OR(J176="",K176=""),"",(K176-J176)/TIMEVALUE("1:00")*60) -> 140 | I176: =IF(H176="","",G176-H176) -> -20 | J176: 17:50:00 | K176: 20:10:00
A177: =IF(AND(B177=$B$1,K177=""),"２",IF(AND(B177=$B$1,K177<>""),"１",IF(B177>$B$1,"３","4"))) -> 4 | B177: 2017-04-14 | D177: 20 | E177: done! | F177: 品川から帰宅 | G177: 90 | H177: =IF(OR(J177="",K177=""),"",(K177-J177)/TIMEVALUE("1:00")*60) -> 75 | I177: =IF(H177="","",G177-H177) -> 15 | J177: 20:10:00 | K177: 21:25:00
A178: =IF(AND(B178=$B$1,K178=""),"２",IF(AND(B178=$B$1,K178<>""),"１",IF(B178>$B$1,"３","4"))) -> 4 | B178: 2017-04-14 | C178: d | D178: 19 | E178: done! | F178: 夕食、SNSチェック | G178: 60 | H178: =IF(OR(J178="",K178=""),"",(K178-J178)/TIMEVALUE("1:00")*60) -> 65 | I178: =IF(H178="","",G178-H178) -> -5 | J178: 21:25:00 | K178: 22:30:00
A179: =IF(AND(B179=$B$1,K179=""),"２",IF(AND(B179=$B$1,K179<>""),"１",IF(B179>$B$1,"３","4"))) -> 4 | B179: 2017-04-14 | C179: h | D179: 21 | E179: done! | F179: ブログ更新 | G179: 90 | H179: =IF(OR(J179="",K179=""),"",(K179-J179)/TIMEVALUE("1:00")*60) -> 90 | I179: =IF(H179="","",G179-H179) -> 0 | J179: 22:30:00 | K179: 1
A180: =IF(AND(B180=$B$1,K180=""),"２",IF(AND(B180=$B$1,K180<>""),"１",IF(B180>$B$1,"３","4"))) -> 4 | B180: 2017-04-17 | C180: d | D180: 6 | E180: done! | F180: 朝食、SNSチェック | G180: 60 | H180: =IF(OR(J180="",K180=""),"",(K180-J180)/TIMEVALUE("1:00")*60) -> 30 | I180: =IF(H180="","",G180-H180) -> 30 | J180: 06:15:00 | K180: 06:45:00
A181: =IF(AND(B181=$B$1,K181=""),"２",IF(AND(B181=$B$1,K181<>""),"１",IF(B181>$B$1,"３","4"))) -> 4 | B181: 2017-04-17 | D181: 7 | E181: done! | F181: STCへ移動 | G181: 90 | H181: =IF(OR(J181="",K181=""),"",(K181-J181)/TIMEVALUE("1:00")*60) -> 90 | I181: =IF(H181="","",G181-H181) -> 0 | J181: 06:45:00 | K181: 08:15:00
A182: =IF(AND(B182=$B$1,K182=""),"２",IF(AND(B182=$B$1,K182<>""),"１",IF(B182>$B$1,"３","4"))) -> 4 | B182: 2017-04-17 | C182: d | D182: 8 | E182: done! | F182: タスク作成 | G182: 15 | H182: =IF(OR(J182="",K182=""),"",(K182-J182)/TIMEVALUE("1:00")*60) -> 10 | I182: =IF(H182="","",G182-H182) -> 5 | J182: 08:15:00 | K182: 08:25:00
A183: =IF(AND(B183=$B$1,K183=""),"２",IF(AND(B183=$B$1,K183<>""),"１",IF(B183>$B$1,"３","4"))) -> 4 | B183: 2017-04-17 | C183: h | D183: 8 | E183: done! | F183: gmail、yahooメールチェック（朝） | G183: 10 | H183: =IF(OR(J183="",K183=""),"",(K183-J183)/TIMEVALUE("1:00")*60) -> 10 | I183: =IF(H183="","",G183-H183) -> -4.440892099e-14 | J183: 08:25:00 | K183: 08:35:00
A184: =IF(AND(B184=$B$1,K184=""),"２",IF(AND(B184=$B$1,K184<>""),"１",IF(B184>$B$1,"３","4"))) -> 4 | B184: 2017-04-17 | D184: 9 | E184: done! | F184: STS連結RP確認 | G184: 90 | H184: =IF(OR(J184="",K184=""),"",(K184-J184)/TIMEVALUE("1:00")*60) -> 100 | I184: =IF(H184="","",G184-H184) -> -10 | J184: 08:35:00 | K184: 10:15:00
A185: =IF(AND(B185=$B$1,K185=""),"２",IF(AND(B185=$B$1,K185<>""),"１",IF(B185>$B$1,"３","4"))) -> 4 | B185: 2017-04-17 | C185: h | D185: 11 | E185: done! | F185: gmail、yahooメールチェック（午前） | G185: 10 | H185: =IF(OR(J185="",K185=""),"",(K185-J185)/TIMEVALUE("1:00")*60) -> 5 | I185: =IF(H185="","",G185-H185) -> 5 | J185: 10:15:00 | K185: 10:20:00
A186: =IF(AND(B186=$B$1,K186=""),"２",IF(AND(B186=$B$1,K186<>""),"１",IF(B186>$B$1,"３","4"))) -> 4 | B186: 2017-04-17 | D186: 11 | E186: done! | F186: ルフト連結RP確認 | G186: 90 | H186: =IF(OR(J186="",K186=""),"",(K186-J186)/TIMEVALUE("1:00")*60) -> 100 | I186: =IF(H186="","",G186-H186) -> -10 | J186: 10:20:00 | K186: 12:00:00
A187: =IF(AND(B187=$B$1,K187=""),"２",IF(AND(B187=$B$1,K187<>""),"１",IF(B187>$B$1,"３","4"))) -> 4 | B187: 2017-04-17 | C187: d | D187: 12 | E187: done! | F187: ランチ、SNSチェック | G187: 60 | H187: =IF(OR(J187="",K187=""),"",(K187-J187)/TIMEVALUE("1:00")*60) -> 45 | I187: =IF(H187="","",G187-H187) -> 15 | J187: 12:00:00 | K187: 12:45:00
A188: =IF(AND(B188=$B$1,K188=""),"２",IF(AND(B188=$B$1,K188<>""),"１",IF(B188>$B$1,"３","4"))) -> 4 | B188: 2017-04-17 | D188: 16 | E188: done! | F188: ケム連結RP確認 | G188: 45 | H188: =IF(OR(J188="",K188=""),"",(K188-J188)/TIMEVALUE("1:00")*60) -> 42 | I188: =IF(H188="","",G188-H188) -> 3 | J188: 13:30:00 | K188: 14:12:00
A189: =IF(AND(B189=$B$1,K189=""),"２",IF(AND(B189=$B$1,K189<>""),"１",IF(B189>$B$1,"３","4"))) -> 4 | B189: 2017-04-17 | D189: 14 | E189: done! | F189: CF法人税 | G189: 40 | H189: =IF(OR(J189="",K189=""),"",(K189-J189)/TIMEVALUE("1:00")*60) -> 38 | I189: =IF(H189="","",G189-H189) -> 2 | J189: 14:12:00 | K189: 14:50:00
A190: =IF(AND(B190=$B$1,K190=""),"２",IF(AND(B190=$B$1,K190<>""),"１",IF(B190>$B$1,"３","4"))) -> 4 | B190: 2017-04-17 | D190: 15 | E190: done! | F190: 回覧物確認 | G190: 30 | H190: =IF(OR(J190="",K190=""),"",(K190-J190)/TIMEVALUE("1:00")*60) -> 35 | I190: =IF(H190="","",G190-H190) -> -5 | J190: 14:50:00 | K190: 15:25:00
A191: =IF(AND(B191=$B$1,K191=""),"２",IF(AND(B191=$B$1,K191<>""),"１",IF(B191>$B$1,"３","4"))) -> 4 | B191: 2017-04-17 | C191: h | D191: 14 | E191: done! | F191: gmail、yahooメールチェック（午後） | G191: 10 | H191: =IF(OR(J191="",K191=""),"",(K191-J191)/TIMEVALUE("1:00")*60) -> 5 | I191: =IF(H191="","",G191-H191) -> 5 | J191: 15:25:00 | K191: 15:30:00
A192: =IF(AND(B192=$B$1,K192=""),"２",IF(AND(B192=$B$1,K192<>""),"１",IF(B192>$B$1,"３","4"))) -> 4 | B192: 2017-04-17 | D192: 13 | E192: done! | F192: 弥生セミナー情報確認 | G192: 30 | H192: =IF(OR(J192="",K192=""),"",(K192-J192)/TIMEVALUE("1:00")*60) -> 35 | I192: =IF(H192="","",G192-H192) -> -5 | J192: 16:00:00 | K192: 16:35:00
A193: =IF(AND(B193=$B$1,K193=""),"２",IF(AND(B193=$B$1,K193<>""),"１",IF(B193>$B$1,"３","4"))) -> 4 | B193: 2017-04-17 | C193: h | D193: 17 | E193: done! | F193: gmail、yahooメールチェック（夕方） | G193: 10 | H193: =IF(OR(J193="",K193=""),"",(K193-J193)/TIMEVALUE("1:00")*60) -> 2 | I193: =IF(H193="","",G193-H193) -> 8 | J193: 16:33:00 | K193: 16:35:00
A194: =IF(AND(B194=$B$1,K194=""),"２",IF(AND(B194=$B$1,K194<>""),"１",IF(B194>$B$1,"３","4"))) -> 4 | B194: 2017-04-17 | C194: h | D194: 19 | E194: done! | F194: gmail、yahooメールチェック（夜） | G194: 10 | H194: =IF(OR(J194="",K194=""),"",(K194-J194)/TIMEVALUE("1:00")*60) -> 10 | I194: =IF(H194="","",G194-H194) -> -1.243449788e-13 | J194: 19:00:00 | K194: 19:10:00
A195: =IF(AND(B195=$B$1,K195=""),"２",IF(AND(B195=$B$1,K195<>""),"１",IF(B195>$B$1,"３","4"))) -> 4 | B195: 2017-04-17 | D195: 19 | E195: done! | F195: 塚本さん飲み（往復移動込） | G195: 300 | H195: =IF(OR(J195="",K195=""),"",(K195-J195)/TIMEVALUE("1:00")*60) -> 270 | I195: =IF(H195="","",G195-H195) -> 30 | J195: 18:00:00 | K195: 22:30:00
A196: =IF(AND(B196=$B$1,K196=""),"２",IF(AND(B196=$B$1,K196<>""),"１",IF(B196>$B$1,"３","4"))) -> 4 | B196: 2017-04-17 | C196: h | D196: 21 | E196: done! | F196: ブログ更新 | G196: 90 | H196: =IF(OR(J196="",K196=""),"",(K196-J196)/TIMEVALUE("1:00")*60) -> 240 | I196: =IF(H196="","",G196-H196) -> -150 | J196: 22:30:00 | K196: 1.104166667
A197: =IF(AND(B197=$B$1,K197=""),"２",IF(AND(B197=$B$1,K197<>""),"１",IF(B197>$B$1,"３","4"))) -> 4 | B197: 2017-04-18 | D197: 7 | E197: done! | F197: 紗彩送り | G197: 25 | H197: =IF(OR(J197="",K197=""),"",(K197-J197)/TIMEVALUE("1:00")*60) -> 25 | I197: =IF(H197="","",G197-H197) -> 7.105427358e-15 | J197: 07:10:00 | K197: 07:35:00
A198: =IF(AND(B198=$B$1,K198=""),"２",IF(AND(B198=$B$1,K198<>""),"１",IF(B198>$B$1,"３","4"))) -> 4 | B198: 2017-04-18 | C198: d | D198: 6 | E198: done! | F198: 朝食、SNSチェック | G198: 60 | H198: =IF(OR(J198="",K198=""),"",(K198-J198)/TIMEVALUE("1:00")*60) -> 85 | I198: =IF(H198="","",G198-H198) -> -25 | J198: 06:45:00 | K198: 08:10:00
A199: =IF(AND(B199=$B$1,K199=""),"２",IF(AND(B199=$B$1,K199<>""),"１",IF(B199>$B$1,"３","4"))) -> 4 | B199: 2017-04-18 | C199: d | D199: 8 | E199: done! | F199: タスク作成 | G199: 15 | H199: =IF(OR(J199="",K199=""),"",(K199-J199)/TIMEVALUE("1:00")*60) -> 20 | I199: =IF(H199="","",G199-H199) -> -5 | J199: 08:10:00 | K199: 08:30:00
A200: =IF(AND(B200=$B$1,K200=""),"２",IF(AND(B200=$B$1,K200<>""),"１",IF(B200>$B$1,"３","4"))) -> 4 | B200: 2017-04-18 | C200: h | D200: 8 | E200: done! | F200: gmail、yahooメールチェック（朝） | G200: 10 | H200: =IF(OR(J200="",K200=""),"",(K200-J200)/TIMEVALUE("1:00")*60) -> 30 | I200: =IF(H200="","",G200-H200) -> -20 | J200: 08:30:00 | K200: 09:00:00
... 785 more rows
